Workbook

Sheet Display
F2: CQG Invesco QQQ ETF | AB2: =RTD("cqg.rtd", ,"SystemInfo", "Linetime") -> 45894.31087
B5: Exchange Traded Funds Performance | S5: Top 15 Performing Companies
B6: Symbol | C6: Description | H6: Last | I6: NC | J6: %NC | K6: NC/ATR | L6: Open | M6: High | N6: Low | O6: Volume | Q6: Ratio
B7: QQQ | C7: =RTD("cqg.rtd", ,"ContractData",B7, "LongDescription",, "T") -> Invesco QQQ Trust Series 1 | H7: =RTD("cqg.rtd", ,"ContractData",B7, "LastTradeToday",, "T") ->  | I7: =RTD("cqg.rtd", ,"ContractData",B7, "NetLastTradeToday",, "T") ->  | J7: =IFERROR(RTD("cqg.rtd", ,"ContractData",B7, "PerCentNetLastTrade",, "T")/100,"") ->  | K7: =IFERROR(I7/RTD("cqg.rtd",,"StudyData",B7, "ATR", "MaType=Sim,Period=10", "ATR","D","-1","ALL",,,"FALSE","T")/100,"") ->  | L7: =RTD("cqg.rtd", ,"ContractData",B7, "OPen",, "T") ->  | M7: =RTD("cqg.rtd", ,"ContractData", B7, "HIgh",, "T") ->  | N7: =RTD("cqg.rtd", ,"ContractData",B7, "LOw",, "T") ->  | O7: =RTD("cqg.rtd", ,"ContractData",B7, "T_CVol",, "T") -> 697004 | Q7: =IFERROR(O7/RTD("cqg.rtd",,"StudyData",B7, "MA", "InputChoice=Vol,MAType=Sim,Period=21", "MA","D","-1","all",,,,"T"),"") -> 0.01506629544
B8: SPY | C8: =RTD("cqg.rtd", ,"ContractData",B8, "LongDescription",, "T") -> SPDR S&P 500 | H8: =RTD("cqg.rtd", ,"ContractData",B8, "LastTradeToday",, "T") ->  | I8: =RTD("cqg.rtd", ,"ContractData",B8, "NetLastTradeToday",, "T") ->  | J8: =IFERROR(RTD("cqg.rtd", ,"ContractData",B8, "PerCentNetLastTrade",, "T")/100,"") ->  | K8: =IFERROR(I8/RTD("cqg.rtd",,"StudyData",B8, "ATR", "MaType=Sim,Period=10", "ATR","D","-1","ALL",,,"FALSE","T")/100,"") ->  | L8: =RTD("cqg.rtd", ,"ContractData",B8, "OPen",, "T") ->  | M8: =RTD("cqg.rtd", ,"ContractData", B8, "HIgh",, "T") ->  | N8: =RTD("cqg.rtd", ,"ContractData",B8, "LOw",, "T") ->  | O8: =RTD("cqg.rtd", ,"ContractData",B8, "T_CVol",, "T") -> 470961 | Q8: =IFERROR(O8/RTD("cqg.rtd",,"StudyData",B8, "MA", "InputChoice=Vol,MAType=Sim,Period=21", "MA","D","-1","all",,,,"T"),"") -> 0.006624334572
B9: XLF | C9: =RTD("cqg.rtd", ,"ContractData",B9, "LongDescription",, "T") -> Financial Select Sector SPDR | H9: =RTD("cqg.rtd", ,"ContractData",B9, "LastTradeToday",, "T") ->  | I9: =RTD("cqg.rtd", ,"ContractData",B9, "NetLastTradeToday",, "T") ->  | J9: =IFERROR(RTD("cqg.rtd", ,"ContractData",B9, "PerCentNetLastTrade",, "T")/100,"") ->  | K9: =IFERROR(I9/RTD("cqg.rtd",,"StudyData",B9, "ATR", "MaType=Sim,Period=10", "ATR","D","-1","ALL",,,"FALSE","T")/100,"") ->  | L9: =RTD("cqg.rtd", ,"ContractData",B9, "OPen",, "T") ->  | M9: =RTD("cqg.rtd", ,"ContractData", B9, "HIgh",, "T") ->  | N9: =RTD("cqg.rtd", ,"ContractData",B9, "LOw",, "T") ->  | O9: =RTD("cqg.rtd", ,"ContractData",B9, "T_CVol",, "T") -> 32698 | Q9: =IFERROR(O9/RTD("cqg.rtd",,"StudyData",B9, "MA", "InputChoice=Vol,MAType=Sim,Period=21", "MA","D","-1","all",,,,"T"),"") -> 0.0008707866473
B10: S.XLY | C10: =RTD("cqg.rtd", ,"ContractData",B10, "LongDescription",, "T") -> Consumer Discretionary Select SectorSPDR | H10: =RTD("cqg.rtd", ,"ContractData",B10, "LastTradeToday",, "T") ->  | I10: =RTD("cqg.rtd", ,"ContractData",B10, "NetLastTradeToday",, "T") ->  | J10: =IFERROR(RTD("cqg.rtd", ,"ContractData",B10, "PerCentNetLastTrade",, "T")/100,"") ->  | K10: =IFERROR(I10/RTD("cqg.rtd",,"StudyData",B10, "ATR", "MaType=Sim,Period=10", "ATR","D","-1","ALL",,,"FALSE","T")/100,"") ->  | L10: =RTD("cqg.rtd", ,"ContractData",B10, "OPen",, "T") ->  | M10: =RTD("cqg.rtd", ,"ContractData", B10, "HIgh",, "T") ->  | N10: =RTD("cqg.rtd", ,"ContractData",B10, "LOw",, "T") ->  | O10: =RTD("cqg.rtd", ,"ContractData",B10, "T_CVol",, "T") -> 754 | Q10: =IFERROR(O10/RTD("cqg.rtd",,"StudyData",B10, "MA", "InputChoice=Vol,MAType=Sim,Period=21", "MA","D","-1","all",,,,"T"),"") -> 0.0001234655233
B11: S.FXI | C11: =RTD("cqg.rtd", ,"ContractData",B11, "LongDescription",, "T") -> iShares China Large-Cap ETF | H11: =RTD("cqg.rtd", ,"ContractData",B11, "LastTradeToday",, "T") ->  | I11: =RTD("cqg.rtd", ,"ContractData",B11, "NetLastTradeToday",, "T") ->  | J11: =IFERROR(RTD("cqg.rtd", ,"ContractData",B11, "PerCentNetLastTrade",, "T")/100,"") ->  | K11: =IFERROR(I11/RTD("cqg.rtd",,"StudyData",B11, "ATR", "MaType=Sim,Period=10", "ATR","D","-1","ALL",,,"FALSE","T")/100,"") ->  | L11: =RTD("cqg.rtd", ,"ContractData",B11, "OPen",, "T") ->  | M11: =RTD("cqg.rtd", ,"ContractData", B11, "HIgh",, "T") ->  | N11: =RTD("cqg.rtd", ,"ContractData",B11, "LOw",, "T") ->  | O11: =RTD("cqg.rtd", ,"ContractData",B11, "T_CVol",, "T") -> 906563 | Q11: =IFERROR(O11/RTD("cqg.rtd",,"StudyData",B11, "MA", "InputChoice=Vol,MAType=Sim,Period=21", "MA","D","-1","all",,,,"T"),"") -> 0.03208806294
B12: IWF | C12: =RTD("cqg.rtd", ,"ContractData",B12, "LongDescription",, "T") -> iShares Russell 1000 Growth ETF | H12: =RTD("cqg.rtd", ,"ContractData",B12, "LastTradeToday",, "T") ->  | I12: =RTD("cqg.rtd", ,"ContractData",B12, "NetLastTradeToday",, "T") ->  | J12: =IFERROR(RTD("cqg.rtd", ,"ContractData",B12, "PerCentNetLastTrade",, "T")/100,"") ->  | K12: =IFERROR(I12/RTD("cqg.rtd",,"StudyData",B12, "ATR", "MaType=Sim,Period=10", "ATR","D","-1","ALL",,,"FALSE","T")/100,"") ->  | L12: =RTD("cqg.rtd", ,"ContractData",B12, "OPen",, "T") ->  | M12: =RTD("cqg.rtd", ,"ContractData", B12, "HIgh",, "T") ->  | N12: =RTD("cqg.rtd", ,"ContractData",B12, "LOw",, "T") ->  | O12: =RTD("cqg.rtd", ,"ContractData",B12, "T_CVol",, "T") -> 58 | Q12: =IFERROR(O12/RTD("cqg.rtd",,"StudyData",B12, "MA", "InputChoice=Vol,MAType=Sim,Period=21", "MA","D","-1","all",,,,"T"),"") -> 6.343818064e-05
B13: IWO | C13: =RTD("cqg.rtd", ,"ContractData",B13, "LongDescription",, "T") -> iShares Russell 2000 Growth ETF | H13: =RTD("cqg.rtd", ,"ContractData",B13, "LastTradeToday",, "T") ->  | I13: =RTD("cqg.rtd", ,"ContractData",B13, "NetLastTradeToday",, "T") ->  | J13: =IFERROR(RTD("cqg.rtd", ,"ContractData",B13, "PerCentNetLastTrade",, "T")/100,"") ->  | K13: =IFERROR(I13/RTD("cqg.rtd",,"StudyData",B13, "ATR", "MaType=Sim,Period=10", "ATR","D","-1","ALL",,,"FALSE","T")/100,"") ->  | L13: =RTD("cqg.rtd", ,"ContractData",B13, "OPen",, "T") ->  | M13: =RTD("cqg.rtd", ,"ContractData", B13, "HIgh",, "T") ->  | N13: =RTD("cqg.rtd", ,"ContractData",B13, "LOw",, "T") ->  | O13: =RTD("cqg.rtd", ,"ContractData",B13, "T_CVol",, "T") -> 7035 | Q13: =IFERROR(O13/RTD("cqg.rtd",,"StudyData",B13, "MA", "InputChoice=Vol,MAType=Sim,Period=21", "MA","D","-1","all",,,,"T"),"") -> 0.02228561886
B14: EP | C14: =RTD("cqg.rtd", ,"ContractData",B14, "LongDescription",, "T") -> E-Mini S&P 500, Sep 25 | H14: =RTD("cqg.rtd", ,"ContractData",B14, "LastTradeToday",, "T") -> 6463.25 | I14: =RTD("cqg.rtd", ,"ContractData",B14, "NetLastTradeToday",, "T") -> -20 | J14: =IFERROR(RTD("cqg.rtd", ,"ContractData",B14, "PerCentNetLastTrade",, "T")/100,"") -> -0.003084872556 | K14: =IFERROR(I14/RTD("cqg.rtd",,"StudyData",B14, "ATR", "MaType=Sim,Period=10", "ATR","D","-1","ALL",,,"FALSE","T")/100,"") -> -0.003350083752 | L14: =RTD("cqg.rtd", ,"ContractData",B14, "OPen",, "T") -> 6493 | M14: =RTD("cqg.rtd", ,"ContractData", B14, "HIgh",, "T") -> 6494 | N14: =RTD("cqg.rtd", ,"ContractData",B14, "LOw",, "T") -> 6462 | O14: =RTD("cqg.rtd", ,"ContractData",B14, "T_CVol",, "T") -> 101641 | Q14: =IFERROR(O14/RTD("cqg.rtd",,"StudyData",B14, "MA", "InputChoice=Vol,MAType=Sim,Period=21", "MA","D","-1","all",,,,"T"),"") -> 0.07870611929
B15: XLE | C15: =RTD("cqg.rtd", ,"ContractData",B15, "LongDescription",, "T") -> Energy Select Sector SPDR | H15: =RTD("cqg.rtd", ,"ContractData",B15, "LastTradeToday",, "T") ->  | I15: =RTD("cqg.rtd", ,"ContractData",B15, "NetLastTradeToday",, "T") ->  | J15: =IFERROR(RTD("cqg.rtd", ,"ContractData",B15, "PerCentNetLastTrade",, "T")/100,"") ->  | K15: =IFERROR(I15/RTD("cqg.rtd",,"StudyData",B15, "ATR", "MaType=Sim,Period=10", "ATR","D","-1","ALL",,,"FALSE","T")/100,"") ->  | L15: =RTD("cqg.rtd", ,"ContractData",B15, "OPen",, "T") ->  | M15: =RTD("cqg.rtd", ,"ContractData", B15, "HIgh",, "T") ->  | N15: =RTD("cqg.rtd", ,"ContractData",B15, "LOw",, "T") ->  | O15: =RTD("cqg.rtd", ,"ContractData",B15, "T_CVol",, "T") -> 8409 | Q15: =IFERROR(O15/RTD("cqg.rtd",,"StudyData",B15, "MA", "InputChoice=Vol,MAType=Sim,Period=21", "MA","D","-1","all",,,,"T"),"") -> 0.0005804008714
B16: USO | C16: =RTD("cqg.rtd", ,"ContractData",B16, "LongDescription",, "T") -> United States Oil Fund | H16: =RTD("cqg.rtd", ,"ContractData",B16, "LastTradeToday",, "T") ->  | I16: =RTD("cqg.rtd", ,"ContractData",B16, "NetLastTradeToday",, "T") ->  | J16: =IFERROR(RTD("cqg.rtd", ,"ContractData",B16, "PerCentNetLastTrade",, "T")/100,"") ->  | K16: =IFERROR(I16/RTD("cqg.rtd",,"StudyData",B16, "ATR", "MaType=Sim,Period=10", "ATR","D","-1","ALL",,,"FALSE","T")/100,"") ->  | L16: =RTD("cqg.rtd", ,"ContractData",B16, "OPen",, "T") ->  | M16: =RTD("cqg.rtd", ,"ContractData", B16, "HIgh",, "T") ->  | N16: =RTD("cqg.rtd", ,"ContractData",B16, "LOw",, "T") ->  | O16: =RTD("cqg.rtd", ,"ContractData",B16, "T_CVol",, "T") -> 36445 | Q16: =IFERROR(O16/RTD("cqg.rtd",,"StudyData",B16, "MA", "InputChoice=Vol,MAType=Sim,Period=21", "MA","D","-1","all",,,,"T"),"") -> 0.007257030706
C17: Top 15 Description | H17: Last | I17: NC | J17: %NC | K17: NC/ATR | L17: Open | M17: High | N17: Low | O17: Volume | Q17: Ratio
A18: =TRIM(QQQ!O1) ->  | B18: News | C18: =IFERROR(RTD("cqg.rtd", ,"ContractData",A18, "LongDescription",, "T")&" ("&RIGHT(A18,LEN(A18)-5)&")","") ->  | H18: =IFERROR(RTD("cqg.rtd", ,"ContractData",A18, "LastTradeToday",, "T"),"") ->  | I18: =IFERROR(RTD("cqg.rtd", ,"ContractData",A18, "NetLastTradeToday",, "T"),"") ->  | J18: =IFERROR(RTD("cqg.rtd", ,"ContractData",A18, "PerCentNetLastTrade",, "T")/100,"") ->  | K18: =IFERROR(I18/RTD("cqg.rtd",,"StudyData",A18, "ATR", "MaType=Sim,Period=10", "ATR","D","-1","ALL",,,"FALSE","T")/100,"") ->  | L18: =IFERROR(RTD("cqg.rtd", ,"ContractData",A18, "OPen",, "T"),"") ->  | M18: =IFERROR(RTD("cqg.rtd", ,"ContractData", A18, "HIgh",, "T"),"") ->  | N18: =IFERROR(RTD("cqg.rtd", ,"ContractData",A18, "LOw",, "T"),"") ->  | O18: =IFERROR(RTD("cqg.rtd", ,"ContractData",A18, "T_CVol",, "T"),"") ->  | Q18: =IFERROR(O18/RTD("cqg.rtd",,"StudyData",A18, "MA", "InputChoice=Vol,MAType=Sim,Period=21", "MA","D","-1","all",,,,"T"),"") ->  | R18: =QQQ!R1 -> 
A19: =TRIM(QQQ!O2) ->  | B19: News | C19: =IFERROR(RTD("cqg.rtd", ,"ContractData",A19, "LongDescription",, "T")&" ("&RIGHT(A19,LEN(A19)-5)&")","") ->  | H19: =IFERROR(RTD("cqg.rtd", ,"ContractData",A19, "LastTradeToday",, "T"),"") ->  | I19: =IFERROR(RTD("cqg.rtd", ,"ContractData",A19, "NetLastTradeToday",, "T"),"") ->  | J19: =IFERROR(RTD("cqg.rtd", ,"ContractData",A19, "PerCentNetLastTrade",, "T")/100,"") ->  | K19: =IFERROR(I19/RTD("cqg.rtd",,"StudyData",A19, "ATR", "MaType=Sim,Period=10", "ATR","D","-1","ALL",,,"FALSE","T")/100,"") ->  | L19: =IFERROR(RTD("cqg.rtd", ,"ContractData",A19, "OPen",, "T"),"") ->  | M19: =IFERROR(RTD("cqg.rtd", ,"ContractData", A19, "HIgh",, "T"),"") ->  | N19: =IFERROR(RTD("cqg.rtd", ,"ContractData",A19, "LOw",, "T"),"") ->  | O19: =IFERROR(RTD("cqg.rtd", ,"ContractData",A19, "T_CVol",, "T"),"") ->  | Q19: =IFERROR(O19/RTD("cqg.rtd",,"StudyData",A19, "MA", "InputChoice=Vol,MAType=Sim,Period=21", "MA","D","-1","all",,,,"T"),"") ->  | R19: =QQQ!R2 -> 
A20: =TRIM(QQQ!O3) ->  | B20: News | C20: =IFERROR(RTD("cqg.rtd", ,"ContractData",A20, "LongDescription",, "T")&" ("&RIGHT(A20,LEN(A20)-5)&")","") ->  | H20: =IFERROR(RTD("cqg.rtd", ,"ContractData",A20, "LastTradeToday",, "T"),"") ->  | I20: =IFERROR(RTD("cqg.rtd", ,"ContractData",A20, "NetLastTradeToday",, "T"),"") ->  | J20: =IFERROR(RTD("cqg.rtd", ,"ContractData",A20, "PerCentNetLastTrade",, "T")/100,"") ->  | K20: =IFERROR(I20/RTD("cqg.rtd",,"StudyData",A20, "ATR", "MaType=Sim,Period=10", "ATR","D","-1","ALL",,,"FALSE","T")/100,"") ->  | L20: =IFERROR(RTD("cqg.rtd", ,"ContractData",A20, "OPen",, "T"),"") ->  | M20: =IFERROR(RTD("cqg.rtd", ,"ContractData", A20, "HIgh",, "T"),"") ->  | N20: =IFERROR(RTD("cqg.rtd", ,"ContractData",A20, "LOw",, "T"),"") ->  | O20: =IFERROR(RTD("cqg.rtd", ,"ContractData",A20, "T_CVol",, "T"),"") ->  | Q20: =IFERROR(O20/RTD("cqg.rtd",,"StudyData",A20, "MA", "InputChoice=Vol,MAType=Sim,Period=21", "MA","D","-1","all",,,,"T"),"") ->  | R20: =QQQ!R3 -> 
A21: =TRIM(QQQ!O4) ->  | B21: News | C21: =IFERROR(RTD("cqg.rtd", ,"ContractData",A21, "LongDescription",, "T")&" ("&RIGHT(A21,LEN(A21)-5)&")","") ->  | H21: =IFERROR(RTD("cqg.rtd", ,"ContractData",A21, "LastTradeToday",, "T"),"") ->  | I21: =IFERROR(RTD("cqg.rtd", ,"ContractData",A21, "NetLastTradeToday",, "T"),"") ->  | J21: =IFERROR(RTD("cqg.rtd", ,"ContractData",A21, "PerCentNetLastTrade",, "T")/100,"") ->  | K21: =IFERROR(I21/RTD("cqg.rtd",,"StudyData",A21, "ATR", "MaType=Sim,Period=10", "ATR","D","-1","ALL",,,"FALSE","T")/100,"") ->  | L21: =IFERROR(RTD("cqg.rtd", ,"ContractData",A21, "OPen",, "T"),"") ->  | M21: =IFERROR(RTD("cqg.rtd", ,"ContractData", A21, "HIgh",, "T"),"") ->  | N21: =IFERROR(RTD("cqg.rtd", ,"ContractData",A21, "LOw",, "T"),"") ->  | O21: =IFERROR(RTD("cqg.rtd", ,"ContractData",A21, "T_CVol",, "T"),"") ->  | Q21: =IFERROR(O21/RTD("cqg.rtd",,"StudyData",A21, "MA", "InputChoice=Vol,MAType=Sim,Period=21", "MA","D","-1","all",,,,"T"),"") ->  | R21: =QQQ!R4 -> 
A22: =TRIM(QQQ!O5) ->  | B22: News | C22: =IFERROR(RTD("cqg.rtd", ,"ContractData",A22, "LongDescription",, "T")&" ("&RIGHT(A22,LEN(A22)-5)&")","") ->  | H22: =IFERROR(RTD("cqg.rtd", ,"ContractData",A22, "LastTradeToday",, "T"),"") ->  | I22: =IFERROR(RTD("cqg.rtd", ,"ContractData",A22, "NetLastTradeToday",, "T"),"") ->  | J22: =IFERROR(RTD("cqg.rtd", ,"ContractData",A22, "PerCentNetLastTrade",, "T")/100,"") ->  | K22: =IFERROR(I22/RTD("cqg.rtd",,"StudyData",A22, "ATR", "MaType=Sim,Period=10", "ATR","D","-1","ALL",,,"FALSE","T")/100,"") ->  | L22: =IFERROR(RTD("cqg.rtd", ,"ContractData",A22, "OPen",, "T"),"") ->  | M22: =IFERROR(RTD("cqg.rtd", ,"ContractData", A22, "HIgh",, "T"),"") ->  | N22: =IFERROR(RTD("cqg.rtd", ,"ContractData",A22, "LOw",, "T"),"") ->  | O22: =IFERROR(RTD("cqg.rtd", ,"ContractData",A22, "T_CVol",, "T"),"") ->  | Q22: =IFERROR(O22/RTD("cqg.rtd",,"StudyData",A22, "MA", "InputChoice=Vol,MAType=Sim,Period=21", "MA","D","-1","all",,,,"T"),"") ->  | R22: =QQQ!R5 -> 
A23: =TRIM(QQQ!O6) ->  | B23: News | C23: =IFERROR(RTD("cqg.rtd", ,"ContractData",A23, "LongDescription",, "T")&" ("&RIGHT(A23,LEN(A23)-5)&")","") ->  | H23: =IFERROR(RTD("cqg.rtd", ,"ContractData",A23, "LastTradeToday",, "T"),"") ->  | I23: =IFERROR(RTD("cqg.rtd", ,"ContractData",A23, "NetLastTradeToday",, "T"),"") ->  | J23: =IFERROR(RTD("cqg.rtd", ,"ContractData",A23, "PerCentNetLastTrade",, "T")/100,"") ->  | K23: =IFERROR(I23/RTD("cqg.rtd",,"StudyData",A23, "ATR", "MaType=Sim,Period=10", "ATR","D","-1","ALL",,,"FALSE","T")/100,"") ->  | L23: =IFERROR(RTD("cqg.rtd", ,"ContractData",A23, "OPen",, "T"),"") ->  | M23: =IFERROR(RTD("cqg.rtd", ,"ContractData", A23, "HIgh",, "T"),"") ->  | N23: =IFERROR(RTD("cqg.rtd", ,"ContractData",A23, "LOw",, "T"),"") ->  | O23: =IFERROR(RTD("cqg.rtd", ,"ContractData",A23, "T_CVol",, "T"),"") ->  | Q23: =IFERROR(O23/RTD("cqg.rtd",,"StudyData",A23, "MA", "InputChoice=Vol,MAType=Sim,Period=21", "MA","D","-1","all",,,,"T"),"") ->  | R23: =QQQ!R6 -> 
A24: =TRIM(QQQ!O7) ->  | B24: News | C24: =IFERROR(RTD("cqg.rtd", ,"ContractData",A24, "LongDescription",, "T")&" ("&RIGHT(A24,LEN(A24)-5)&")","") ->  | H24: =IFERROR(RTD("cqg.rtd", ,"ContractData",A24, "LastTradeToday",, "T"),"") ->  | I24: =IFERROR(RTD("cqg.rtd", ,"ContractData",A24, "NetLastTradeToday",, "T"),"") ->  | J24: =IFERROR(RTD("cqg.rtd", ,"ContractData",A24, "PerCentNetLastTrade",, "T")/100,"") ->  | K24: =IFERROR(I24/RTD("cqg.rtd",,"StudyData",A24, "ATR", "MaType=Sim,Period=10", "ATR","D","-1","ALL",,,"FALSE","T")/100,"") ->  | L24: =IFERROR(RTD("cqg.rtd", ,"ContractData",A24, "OPen",, "T"),"") ->  | M24: =IFERROR(RTD("cqg.rtd", ,"ContractData", A24, "HIgh",, "T"),"") ->  | N24: =IFERROR(RTD("cqg.rtd", ,"ContractData",A24, "LOw",, "T"),"") ->  | O24: =IFERROR(RTD("cqg.rtd", ,"ContractData",A24, "T_CVol",, "T"),"") ->  | Q24: =IFERROR(O24/RTD("cqg.rtd",,"StudyData",A24, "MA", "InputChoice=Vol,MAType=Sim,Period=21", "MA","D","-1","all",,,,"T"),"") ->  | R24: =QQQ!R7 -> 
A25: =TRIM(QQQ!O8) ->  | B25: News | C25: =IFERROR(RTD("cqg.rtd", ,"ContractData",A25, "LongDescription",, "T")&" ("&RIGHT(A25,LEN(A25)-5)&")","") ->  | H25: =IFERROR(RTD("cqg.rtd", ,"ContractData",A25, "LastTradeToday",, "T"),"") ->  | I25: =IFERROR(RTD("cqg.rtd", ,"ContractData",A25, "NetLastTradeToday",, "T"),"") ->  | J25: =IFERROR(RTD("cqg.rtd", ,"ContractData",A25, "PerCentNetLastTrade",, "T")/100,"") ->  | K25: =IFERROR(I25/RTD("cqg.rtd",,"StudyData",A25, "ATR", "MaType=Sim,Period=10", "ATR","D","-1","ALL",,,"FALSE","T")/100,"") ->  | L25: =IFERROR(RTD("cqg.rtd", ,"ContractData",A25, "OPen",, "T"),"") ->  | M25: =IFERROR(RTD("cqg.rtd", ,"ContractData", A25, "HIgh",, "T"),"") ->  | N25: =IFERROR(RTD("cqg.rtd", ,"ContractData",A25, "LOw",, "T"),"") ->  | O25: =IFERROR(RTD("cqg.rtd", ,"ContractData",A25, "T_CVol",, "T"),"") ->  | Q25: =IFERROR(O25/RTD("cqg.rtd",,"StudyData",A25, "MA", "InputChoice=Vol,MAType=Sim,Period=21", "MA","D","-1","all",,,,"T"),"") ->  | R25: =QQQ!R8 -> 
A26: =TRIM(QQQ!O9) ->  | B26: News | C26: =IFERROR(RTD("cqg.rtd", ,"ContractData",A26, "LongDescription",, "T")&" ("&RIGHT(A26,LEN(A26)-5)&")","") ->  | H26: =IFERROR(RTD("cqg.rtd", ,"ContractData",A26, "LastTradeToday",, "T"),"") ->  | I26: =IFERROR(RTD("cqg.rtd", ,"ContractData",A26, "NetLastTradeToday",, "T"),"") ->  | J26: =IFERROR(RTD("cqg.rtd", ,"ContractData",A26, "PerCentNetLastTrade",, "T")/100,"") ->  | K26: =IFERROR(I26/RTD("cqg.rtd",,"StudyData",A26, "ATR", "MaType=Sim,Period=10", "ATR","D","-1","ALL",,,"FALSE","T")/100,"") ->  | L26: =IFERROR(RTD("cqg.rtd", ,"ContractData",A26, "OPen",, "T"),"") ->  | M26: =IFERROR(RTD("cqg.rtd", ,"ContractData", A26, "HIgh",, "T"),"") ->  | N26: =IFERROR(RTD("cqg.rtd", ,"ContractData",A26, "LOw",, "T"),"") ->  | O26: =IFERROR(RTD("cqg.rtd", ,"ContractData",A26, "T_CVol",, "T"),"") ->  | Q26: =IFERROR(O26/RTD("cqg.rtd",,"StudyData",A26, "MA", "InputChoice=Vol,MAType=Sim,Period=21", "MA","D","-1","all",,,,"T"),"") ->  | R26: =QQQ!R9 -> 
A27: =TRIM(QQQ!O10) ->  | B27: News | C27: =IFERROR(RTD("cqg.rtd", ,"ContractData",A27, "LongDescription",, "T")&" ("&RIGHT(A27,LEN(A27)-5)&")","") ->  | H27: =IFERROR(RTD("cqg.rtd", ,"ContractData",A27, "LastTradeToday",, "T"),"") ->  | I27: =IFERROR(RTD("cqg.rtd", ,"ContractData",A27, "NetLastTradeToday",, "T"),"") ->  | J27: =IFERROR(RTD("cqg.rtd", ,"ContractData",A27, "PerCentNetLastTrade",, "T")/100,"") ->  | K27: =IFERROR(I27/RTD("cqg.rtd",,"StudyData",A27, "ATR", "MaType=Sim,Period=10", "ATR","D","-1","ALL",,,"FALSE","T")/100,"") ->  | L27: =IFERROR(RTD("cqg.rtd", ,"ContractData",A27, "OPen",, "T"),"") ->  | M27: =IFERROR(RTD("cqg.rtd", ,"ContractData", A27, "HIgh",, "T"),"") ->  | N27: =IFERROR(RTD("cqg.rtd", ,"ContractData",A27, "LOw",, "T"),"") ->  | O27: =IFERROR(RTD("cqg.rtd", ,"ContractData",A27, "T_CVol",, "T"),"") ->  | Q27: =IFERROR(O27/RTD("cqg.rtd",,"StudyData",A27, "MA", "InputChoice=Vol,MAType=Sim,Period=21", "MA","D","-1","all",,,,"T"),"") ->  | R27: =QQQ!R10 ->  | S27: Bottom 15 Performing Companies
A28: =TRIM(QQQ!O11) ->  | B28: News | C28: =IFERROR(RTD("cqg.rtd", ,"ContractData",A28, "LongDescription",, "T")&" ("&RIGHT(A28,LEN(A28)-5)&")","") ->  | H28: =IFERROR(RTD("cqg.rtd", ,"ContractData",A28, "LastTradeToday",, "T"),"") ->  | I28: =IFERROR(RTD("cqg.rtd", ,"ContractData",A28, "NetLastTradeToday",, "T"),"") ->  | J28: =IFERROR(RTD("cqg.rtd", ,"ContractData",A28, "PerCentNetLastTrade",, "T")/100,"") ->  | K28: =IFERROR(I28/RTD("cqg.rtd",,"StudyData",A28, "ATR", "MaType=Sim,Period=10", "ATR","D","-1","ALL",,,"FALSE","T")/100,"") ->  | L28: =IFERROR(RTD("cqg.rtd", ,"ContractData",A28, "OPen",, "T"),"") ->  | M28: =IFERROR(RTD("cqg.rtd", ,"ContractData", A28, "HIgh",, "T"),"") ->  | N28: =IFERROR(RTD("cqg.rtd", ,"ContractData",A28, "LOw",, "T"),"") ->  | O28: =IFERROR(RTD("cqg.rtd", ,"ContractData",A28, "T_CVol",, "T"),"") ->  | Q28: =IFERROR(O28/RTD("cqg.rtd",,"StudyData",A28, "MA", "InputChoice=Vol,MAType=Sim,Period=21", "MA","D","-1","all",,,,"T"),"") ->  | R28: =QQQ!R11 -> 
A29: =TRIM(QQQ!O12) ->  | B29: News | C29: =IFERROR(RTD("cqg.rtd", ,"ContractData",A29, "LongDescription",, "T")&" ("&RIGHT(A29,LEN(A29)-5)&")","") ->  | H29: =IFERROR(RTD("cqg.rtd", ,"ContractData",A29, "LastTradeToday",, "T"),"") ->  | I29: =IFERROR(RTD("cqg.rtd", ,"ContractData",A29, "NetLastTradeToday",, "T"),"") ->  | J29: =IFERROR(RTD("cqg.rtd", ,"ContractData",A29, "PerCentNetLastTrade",, "T")/100,"") ->  | K29: =IFERROR(I29/RTD("cqg.rtd",,"StudyData",A29, "ATR", "MaType=Sim,Period=10", "ATR","D","-1","ALL",,,"FALSE","T")/100,"") ->  | L29: =IFERROR(RTD("cqg.rtd", ,"ContractData",A29, "OPen",, "T"),"") ->  | M29: =IFERROR(RTD("cqg.rtd", ,"ContractData", A29, "HIgh",, "T"),"") ->  | N29: =IFERROR(RTD("cqg.rtd", ,"ContractData",A29, "LOw",, "T"),"") ->  | O29: =IFERROR(RTD("cqg.rtd", ,"ContractData",A29, "T_CVol",, "T"),"") ->  | Q29: =IFERROR(O29/RTD("cqg.rtd",,"StudyData",A29, "MA", "InputChoice=Vol,MAType=Sim,Period=21", "MA","D","-1","all",,,,"T"),"") ->  | R29: =QQQ!R12 -> 
A30: =TRIM(QQQ!O13) ->  | B30: News | C30: =IFERROR(RTD("cqg.rtd", ,"ContractData",A30, "LongDescription",, "T")&" ("&RIGHT(A30,LEN(A30)-5)&")","") ->  | H30: =IFERROR(RTD("cqg.rtd", ,"ContractData",A30, "LastTradeToday",, "T"),"") ->  | I30: =IFERROR(RTD("cqg.rtd", ,"ContractData",A30, "NetLastTradeToday",, "T"),"") ->  | J30: =IFERROR(RTD("cqg.rtd", ,"ContractData",A30, "PerCentNetLastTrade",, "T")/100,"") ->  | K30: =IFERROR(I30/RTD("cqg.rtd",,"StudyData",A30, "ATR", "MaType=Sim,Period=10", "ATR","D","-1","ALL",,,"FALSE","T")/100,"") ->  | L30: =IFERROR(RTD("cqg.rtd", ,"ContractData",A30, "OPen",, "T"),"") ->  | M30: =IFERROR(RTD("cqg.rtd", ,"ContractData", A30, "HIgh",, "T"),"") ->  | N30: =IFERROR(RTD("cqg.rtd", ,"ContractData",A30, "LOw",, "T"),"") ->  | O30: =IFERROR(RTD("cqg.rtd", ,"ContractData",A30, "T_CVol",, "T"),"") ->  | Q30: =IFERROR(O30/RTD("cqg.rtd",,"StudyData",A30, "MA", "InputChoice=Vol,MAType=Sim,Period=21", "MA","D","-1","all",,,,"T"),"") ->  | R30: =QQQ!R13 -> 
A31: =TRIM(QQQ!O14) ->  | B31: News | C31: =IFERROR(RTD("cqg.rtd", ,"ContractData",A31, "LongDescription",, "T")&" ("&RIGHT(A31,LEN(A31)-5)&")","") ->  | H31: =IFERROR(RTD("cqg.rtd", ,"ContractData",A31, "LastTradeToday",, "T"),"") ->  | I31: =IFERROR(RTD("cqg.rtd", ,"ContractData",A31, "NetLastTradeToday",, "T"),"") ->  | J31: =IFERROR(RTD("cqg.rtd", ,"ContractData",A31, "PerCentNetLastTrade",, "T")/100,"") ->  | K31: =IFERROR(I31/RTD("cqg.rtd",,"StudyData",A31, "ATR", "MaType=Sim,Period=10", "ATR","D","-1","ALL",,,"FALSE","T")/100,"") ->  | L31: =IFERROR(RTD("cqg.rtd", ,"ContractData",A31, "OPen",, "T"),"") ->  | M31: =IFERROR(RTD("cqg.rtd", ,"ContractData", A31, "HIgh",, "T"),"") ->  | N31: =IFERROR(RTD("cqg.rtd", ,"ContractData",A31, "LOw",, "T"),"") ->  | O31: =IFERROR(RTD("cqg.rtd", ,"ContractData",A31, "T_CVol",, "T"),"") ->  | Q31: =IFERROR(O31/RTD("cqg.rtd",,"StudyData",A31, "MA", "InputChoice=Vol,MAType=Sim,Period=21", "MA","D","-1","all",,,,"T"),"") ->  | R31: =QQQ!R14 -> 
A32: =TRIM(QQQ!O15) ->  | B32: News | C32: =IFERROR(RTD("cqg.rtd", ,"ContractData",A32, "LongDescription",, "T")&" ("&RIGHT(A32,LEN(A32)-5)&")","") ->  | H32: =IFERROR(RTD("cqg.rtd", ,"ContractData",A32, "LastTradeToday",, "T"),"") ->  | I32: =IFERROR(RTD("cqg.rtd", ,"ContractData",A32, "NetLastTradeToday",, "T"),"") ->  | J32: =IFERROR(RTD("cqg.rtd", ,"ContractData",A32, "PerCentNetLastTrade",, "T")/100,"") ->  | K32: =IFERROR(I32/RTD("cqg.rtd",,"StudyData",A32, "ATR", "MaType=Sim,Period=10", "ATR","D","-1","ALL",,,"FALSE","T")/100,"") ->  | L32: =IFERROR(RTD("cqg.rtd", ,"ContractData",A32, "OPen",, "T"),"") ->  | M32: =IFERROR(RTD("cqg.rtd", ,"ContractData", A32, "HIgh",, "T"),"") ->  | N32: =IFERROR(RTD("cqg.rtd", ,"ContractData",A32, "LOw",, "T"),"") ->  | O32: =IFERROR(RTD("cqg.rtd", ,"ContractData",A32, "T_CVol",, "T"),"") ->  | Q32: =IFERROR(O32/RTD("cqg.rtd",,"StudyData",A32, "MA", "InputChoice=Vol,MAType=Sim,Period=21", "MA","D","-1","all",,,,"T"),"") ->  | R32: =QQQ!R15 -> 
C33: Bottom 15 Description | H33: Last | I33: NC | J33: %NC | K33: NC/ATR | L33: Open | M33: High | N33: Low | O33: Volume | Q33: Ratio
A34: =TRIM(QQQ!AC1) ->  | B34: News | C34: =IFERROR(RTD("cqg.rtd", ,"ContractData",A34, "LongDescription",, "T")&" ("&RIGHT(A34,LEN(A34)-5)&")","") ->  | H34: =IFERROR(RTD("cqg.rtd", ,"ContractData",A34, "LastTradeToday",, "T"),"") ->  | I34: =IFERROR(RTD("cqg.rtd", ,"ContractData",A34, "NetLastTradeToday",, "T"),"") ->  | J34: =IFERROR(RTD("cqg.rtd", ,"ContractData",A34, "PerCentNetLastTrade",, "T")/100,"") ->  | K34: =IFERROR(I34/RTD("cqg.rtd",,"StudyData",A34, "ATR", "MaType=Sim,Period=10", "ATR","D","-1","ALL",,,"FALSE","T")/100,"") ->  | L34: =IFERROR(RTD("cqg.rtd", ,"ContractData",A34, "OPen",, "T"),"") ->  | M34: =IFERROR(RTD("cqg.rtd", ,"ContractData", A34, "HIgh",, "T"),"") ->  | N34: =IFERROR(RTD("cqg.rtd", ,"ContractData",A34, "LOw",, "T"),"") ->  | O34: =IFERROR(RTD("cqg.rtd", ,"ContractData",A34, "T_CVol",, "T"),"") ->  | Q34: =IFERROR(O34/RTD("cqg.rtd",,"StudyData",A34, "MA", "InputChoice=Vol,MAType=Sim,Period=21", "MA","D","-1","all",,,,"T"),"") ->  | R34: =QQQ!AH1 -> 
A35: =TRIM(QQQ!AC2) ->  | B35: News | C35: =IFERROR(RTD("cqg.rtd", ,"ContractData",A35, "LongDescription",, "T")&" ("&RIGHT(A35,LEN(A35)-5)&")","") ->  | H35: =IFERROR(RTD("cqg.rtd", ,"ContractData",A35, "LastTradeToday",, "T"),"") ->  | I35: =IFERROR(RTD("cqg.rtd", ,"ContractData",A35, "NetLastTradeToday",, "T"),"") ->  | J35: =IFERROR(RTD("cqg.rtd", ,"ContractData",A35, "PerCentNetLastTrade",, "T")/100,"") ->  | K35: =IFERROR(I35/RTD("cqg.rtd",,"StudyData",A35, "ATR", "MaType=Sim,Period=10", "ATR","D","-1","ALL",,,"FALSE","T")/100,"") ->  | L35: =IFERROR(RTD("cqg.rtd", ,"ContractData",A35, "OPen",, "T"),"") ->  | M35: =IFERROR(RTD("cqg.rtd", ,"ContractData", A35, "HIgh",, "T"),"") ->  | N35: =IFERROR(RTD("cqg.rtd", ,"ContractData",A35, "LOw",, "T"),"") ->  | O35: =IFERROR(RTD("cqg.rtd", ,"ContractData",A35, "T_CVol",, "T"),"") ->  | Q35: =IFERROR(O35/RTD("cqg.rtd",,"StudyData",A35, "MA", "InputChoice=Vol,MAType=Sim,Period=21", "MA","D","-1","all",,,,"T"),"") ->  | R35: =QQQ!AH2 -> 
A36: =TRIM(QQQ!AC3) ->  | B36: News | C36: =IFERROR(RTD("cqg.rtd", ,"ContractData",A36, "LongDescription",, "T")&" ("&RIGHT(A36,LEN(A36)-5)&")","") ->  | H36: =IFERROR(RTD("cqg.rtd", ,"ContractData",A36, "LastTradeToday",, "T"),"") ->  | I36: =IFERROR(RTD("cqg.rtd", ,"ContractData",A36, "NetLastTradeToday",, "T"),"") ->  | J36: =IFERROR(RTD("cqg.rtd", ,"ContractData",A36, "PerCentNetLastTrade",, "T")/100,"") ->  | K36: =IFERROR(I36/RTD("cqg.rtd",,"StudyData",A36, "ATR", "MaType=Sim,Period=10", "ATR","D","-1","ALL",,,"FALSE","T")/100,"") ->  | L36: =IFERROR(RTD("cqg.rtd", ,"ContractData",A36, "OPen",, "T"),"") ->  | M36: =IFERROR(RTD("cqg.rtd", ,"ContractData", A36, "HIgh",, "T"),"") ->  | N36: =IFERROR(RTD("cqg.rtd", ,"ContractData",A36, "LOw",, "T"),"") ->  | O36: =IFERROR(RTD("cqg.rtd", ,"ContractData",A36, "T_CVol",, "T"),"") ->  | Q36: =IFERROR(O36/RTD("cqg.rtd",,"StudyData",A36, "MA", "InputChoice=Vol,MAType=Sim,Period=21", "MA","D","-1","all",,,,"T"),"") ->  | R36: =QQQ!AH3 -> 
A37: =TRIM(QQQ!AC4) ->  | B37: News | C37: =IFERROR(RTD("cqg.rtd", ,"ContractData",A37, "LongDescription",, "T")&" ("&RIGHT(A37,LEN(A37)-5)&")","") ->  | H37: =IFERROR(RTD("cqg.rtd", ,"ContractData",A37, "LastTradeToday",, "T"),"") ->  | I37: =IFERROR(RTD("cqg.rtd", ,"ContractData",A37, "NetLastTradeToday",, "T"),"") ->  | J37: =IFERROR(RTD("cqg.rtd", ,"ContractData",A37, "PerCentNetLastTrade",, "T")/100,"") ->  | K37: =IFERROR(I37/RTD("cqg.rtd",,"StudyData",A37, "ATR", "MaType=Sim,Period=10", "ATR","D","-1","ALL",,,"FALSE","T")/100,"") ->  | L37: =IFERROR(RTD("cqg.rtd", ,"ContractData",A37, "OPen",, "T"),"") ->  | M37: =IFERROR(RTD("cqg.rtd", ,"ContractData", A37, "HIgh",, "T"),"") ->  | N37: =IFERROR(RTD("cqg.rtd", ,"ContractData",A37, "LOw",, "T"),"") ->  | O37: =IFERROR(RTD("cqg.rtd", ,"ContractData",A37, "T_CVol",, "T"),"") ->  | Q37: =IFERROR(O37/RTD("cqg.rtd",,"StudyData",A37, "MA", "InputChoice=Vol,MAType=Sim,Period=21", "MA","D","-1","all",,,,"T"),"") ->  | R37: =QQQ!AH4 -> 
A38: =TRIM(QQQ!AC5) ->  | B38: News | C38: =IFERROR(RTD("cqg.rtd", ,"ContractData",A38, "LongDescription",, "T")&" ("&RIGHT(A38,LEN(A38)-5)&")","") ->  | H38: =IFERROR(RTD("cqg.rtd", ,"ContractData",A38, "LastTradeToday",, "T"),"") ->  | I38: =IFERROR(RTD("cqg.rtd", ,"ContractData",A38, "NetLastTradeToday",, "T"),"") ->  | J38: =IFERROR(RTD("cqg.rtd", ,"ContractData",A38, "PerCentNetLastTrade",, "T")/100,"") ->  | K38: =IFERROR(I38/RTD("cqg.rtd",,"StudyData",A38, "ATR", "MaType=Sim,Period=10", "ATR","D","-1","ALL",,,"FALSE","T")/100,"") ->  | L38: =IFERROR(RTD("cqg.rtd", ,"ContractData",A38, "OPen",, "T"),"") ->  | M38: =IFERROR(RTD("cqg.rtd", ,"ContractData", A38, "HIgh",, "T"),"") ->  | N38: =IFERROR(RTD("cqg.rtd", ,"ContractData",A38, "LOw",, "T"),"") ->  | O38: =IFERROR(RTD("cqg.rtd", ,"ContractData",A38, "T_CVol",, "T"),"") ->  | Q38: =IFERROR(O38/RTD("cqg.rtd",,"StudyData",A38, "MA", "InputChoice=Vol,MAType=Sim,Period=21", "MA","D","-1","all",,,,"T"),"") ->  | R38: =QQQ!AH5 -> 
A39: =TRIM(QQQ!AC6) ->  | B39: News | C39: =IFERROR(RTD("cqg.rtd", ,"ContractData",A39, "LongDescription",, "T")&" ("&RIGHT(A39,LEN(A39)-5)&")","") ->  | H39: =IFERROR(RTD("cqg.rtd", ,"ContractData",A39, "LastTradeToday",, "T"),"") ->  | I39: =IFERROR(RTD("cqg.rtd", ,"ContractData",A39, "NetLastTradeToday",, "T"),"") ->  | J39: =IFERROR(RTD("cqg.rtd", ,"ContractData",A39, "PerCentNetLastTrade",, "T")/100,"") ->  | K39: =IFERROR(I39/RTD("cqg.rtd",,"StudyData",A39, "ATR", "MaType=Sim,Period=10", "ATR","D","-1","ALL",,,"FALSE","T")/100,"") ->  | L39: =IFERROR(RTD("cqg.rtd", ,"ContractData",A39, "OPen",, "T"),"") ->  | M39: =IFERROR(RTD("cqg.rtd", ,"ContractData", A39, "HIgh",, "T"),"") ->  | N39: =IFERROR(RTD("cqg.rtd", ,"ContractData",A39, "LOw",, "T"),"") ->  | O39: =IFERROR(RTD("cqg.rtd", ,"ContractData",A39, "T_CVol",, "T"),"") ->  | Q39: =IFERROR(O39/RTD("cqg.rtd",,"StudyData",A39, "MA", "InputChoice=Vol,MAType=Sim,Period=21", "MA","D","-1","all",,,,"T"),"") ->  | R39: =QQQ!AH6 -> 
A40: =TRIM(QQQ!AC7) ->  | B40: News | C40: =IFERROR(RTD("cqg.rtd", ,"ContractData",A40, "LongDescription",, "T")&" ("&RIGHT(A40,LEN(A40)-5)&")","") ->  | H40: =IFERROR(RTD("cqg.rtd", ,"ContractData",A40, "LastTradeToday",, "T"),"") ->  | I40: =IFERROR(RTD("cqg.rtd", ,"ContractData",A40, "NetLastTradeToday",, "T"),"") ->  | J40: =IFERROR(RTD("cqg.rtd", ,"ContractData",A40, "PerCentNetLastTrade",, "T")/100,"") ->  | K40: =IFERROR(I40/RTD("cqg.rtd",,"StudyData",A40, "ATR", "MaType=Sim,Period=10", "ATR","D","-1","ALL",,,"FALSE","T")/100,"") ->  | L40: =IFERROR(RTD("cqg.rtd", ,"ContractData",A40, "OPen",, "T"),"") ->  | M40: =IFERROR(RTD("cqg.rtd", ,"ContractData", A40, "HIgh",, "T"),"") ->  | N40: =IFERROR(RTD("cqg.rtd", ,"ContractData",A40, "LOw",, "T"),"") ->  | O40: =IFERROR(RTD("cqg.rtd", ,"ContractData",A40, "T_CVol",, "T"),"") ->  | Q40: =IFERROR(O40/RTD("cqg.rtd",,"StudyData",A40, "MA", "InputChoice=Vol,MAType=Sim,Period=21", "MA","D","-1","all",,,,"T"),"") ->  | R40: =QQQ!AH7 -> 
A41: =TRIM(QQQ!AC8) ->  | B41: News | C41: =IFERROR(RTD("cqg.rtd", ,"ContractData",A41, "LongDescription",, "T")&" ("&RIGHT(A41,LEN(A41)-5)&")","") ->  | H41: =IFERROR(RTD("cqg.rtd", ,"ContractData",A41, "LastTradeToday",, "T"),"") ->  | I41: =IFERROR(RTD("cqg.rtd", ,"ContractData",A41, "NetLastTradeToday",, "T"),"") ->  | J41: =IFERROR(RTD("cqg.rtd", ,"ContractData",A41, "PerCentNetLastTrade",, "T")/100,"") ->  | K41: =IFERROR(I41/RTD("cqg.rtd",,"StudyData",A41, "ATR", "MaType=Sim,Period=10", "ATR","D","-1","ALL",,,"FALSE","T")/100,"") ->  | L41: =IFERROR(RTD("cqg.rtd", ,"ContractData",A41, "OPen",, "T"),"") ->  | M41: =IFERROR(RTD("cqg.rtd", ,"ContractData", A41, "HIgh",, "T"),"") ->  | N41: =IFERROR(RTD("cqg.rtd", ,"ContractData",A41, "LOw",, "T"),"") ->  | O41: =IFERROR(RTD("cqg.rtd", ,"ContractData",A41, "T_CVol",, "T"),"") ->  | Q41: =IFERROR(O41/RTD("cqg.rtd",,"StudyData",A41, "MA", "InputChoice=Vol,MAType=Sim,Period=21", "MA","D","-1","all",,,,"T"),"") ->  | R41: =QQQ!AH8 -> 
A42: =TRIM(QQQ!AC9) ->  | B42: News | C42: =IFERROR(RTD("cqg.rtd", ,"ContractData",A42, "LongDescription",, "T")&" ("&RIGHT(A42,LEN(A42)-5)&")","") ->  | H42: =IFERROR(RTD("cqg.rtd", ,"ContractData",A42, "LastTradeToday",, "T"),"") ->  | I42: =IFERROR(RTD("cqg.rtd", ,"ContractData",A42, "NetLastTradeToday",, "T"),"") ->  | J42: =IFERROR(RTD("cqg.rtd", ,"ContractData",A42, "PerCentNetLastTrade",, "T")/100,"") ->  | K42: =IFERROR(I42/RTD("cqg.rtd",,"StudyData",A42, "ATR", "MaType=Sim,Period=10", "ATR","D","-1","ALL",,,"FALSE","T")/100,"") ->  | L42: =IFERROR(RTD("cqg.rtd", ,"ContractData",A42, "OPen",, "T"),"") ->  | M42: =IFERROR(RTD("cqg.rtd", ,"ContractData", A42, "HIgh",, "T"),"") ->  | N42: =IFERROR(RTD("cqg.rtd", ,"ContractData",A42, "LOw",, "T"),"") ->  | O42: =IFERROR(RTD("cqg.rtd", ,"ContractData",A42, "T_CVol",, "T"),"") ->  | Q42: =IFERROR(O42/RTD("cqg.rtd",,"StudyData",A42, "MA", "InputChoice=Vol,MAType=Sim,Period=21", "MA","D","-1","all",,,,"T"),"") ->  | R42: =QQQ!AH9 -> 
A43: =TRIM(QQQ!AC10) ->  | B43: News | C43: =IFERROR(RTD("cqg.rtd", ,"ContractData",A43, "LongDescription",, "T")&" ("&RIGHT(A43,LEN(A43)-5)&")","") ->  | H43: =IFERROR(RTD("cqg.rtd", ,"ContractData",A43, "LastTradeToday",, "T"),"") ->  | I43: =IFERROR(RTD("cqg.rtd", ,"ContractData",A43, "NetLastTradeToday",, "T"),"") ->  | J43: =IFERROR(RTD("cqg.rtd", ,"ContractData",A43, "PerCentNetLastTrade",, "T")/100,"") ->  | K43: =IFERROR(I43/RTD("cqg.rtd",,"StudyData",A43, "ATR", "MaType=Sim,Period=10", "ATR","D","-1","ALL",,,"FALSE","T")/100,"") ->  | L43: =IFERROR(RTD("cqg.rtd", ,"ContractData",A43, "OPen",, "T"),"") ->  | M43: =IFERROR(RTD("cqg.rtd", ,"ContractData", A43, "HIgh",, "T"),"") ->  | N43: =IFERROR(RTD("cqg.rtd", ,"ContractData",A43, "LOw",, "T"),"") ->  | O43: =IFERROR(RTD("cqg.rtd", ,"ContractData",A43, "T_CVol",, "T"),"") ->  | Q43: =IFERROR(O43/RTD("cqg.rtd",,"StudyData",A43, "MA", "InputChoice=Vol,MAType=Sim,Period=21", "MA","D","-1","all",,,,"T"),"") ->  | R43: =QQQ!AH10 -> 
A44: =TRIM(QQQ!AC11) ->  | B44: News | C44: =IFERROR(RTD("cqg.rtd", ,"ContractData",A44, "LongDescription",, "T")&" ("&RIGHT(A44,LEN(A44)-5)&")","") ->  | H44: =IFERROR(RTD("cqg.rtd", ,"ContractData",A44, "LastTradeToday",, "T"),"") ->  | I44: =IFERROR(RTD("cqg.rtd", ,"ContractData",A44, "NetLastTradeToday",, "T"),"") ->  | J44: =IFERROR(RTD("cqg.rtd", ,"ContractData",A44, "PerCentNetLastTrade",, "T")/100,"") ->  | K44: =IFERROR(I44/RTD("cqg.rtd",,"StudyData",A44, "ATR", "MaType=Sim,Period=10", "ATR","D","-1","ALL",,,"FALSE","T")/100,"") ->  | L44: =IFERROR(RTD("cqg.rtd", ,"ContractData",A44, "OPen",, "T"),"") ->  | M44: =IFERROR(RTD("cqg.rtd", ,"ContractData", A44, "HIgh",, "T"),"") ->  | N44: =IFERROR(RTD("cqg.rtd", ,"ContractData",A44, "LOw",, "T"),"") ->  | O44: =IFERROR(RTD("cqg.rtd", ,"ContractData",A44, "T_CVol",, "T"),"") ->  | Q44: =IFERROR(O44/RTD("cqg.rtd",,"StudyData",A44, "MA", "InputChoice=Vol,MAType=Sim,Period=21", "MA","D","-1","all",,,,"T"),"") ->  | R44: =QQQ!AH11 -> 
A45: =TRIM(QQQ!AC12) ->  | B45: News | C45: =IFERROR(RTD("cqg.rtd", ,"ContractData",A45, "LongDescription",, "T")&" ("&RIGHT(A45,LEN(A45)-5)&")","") ->  | H45: =IFERROR(RTD("cqg.rtd", ,"ContractData",A45, "LastTradeToday",, "T"),"") ->  | I45: =IFERROR(RTD("cqg.rtd", ,"ContractData",A45, "NetLastTradeToday",, "T"),"") ->  | J45: =IFERROR(RTD("cqg.rtd", ,"ContractData",A45, "PerCentNetLastTrade",, "T")/100,"") ->  | K45: =IFERROR(I45/RTD("cqg.rtd",,"StudyData",A45, "ATR", "MaType=Sim,Period=10", "ATR","D","-1","ALL",,,"FALSE","T")/100,"") ->  | L45: =IFERROR(RTD("cqg.rtd", ,"ContractData",A45, "OPen",, "T"),"") ->  | M45: =IFERROR(RTD("cqg.rtd", ,"ContractData", A45, "HIgh",, "T"),"") ->  | N45: =IFERROR(RTD("cqg.rtd", ,"ContractData",A45, "LOw",, "T"),"") ->  | O45: =IFERROR(RTD("cqg.rtd", ,"ContractData",A45, "T_CVol",, "T"),"") ->  | Q45: =IFERROR(O45/RTD("cqg.rtd",,"StudyData",A45, "MA", "InputChoice=Vol,MAType=Sim,Period=21", "MA","D","-1","all",,,,"T"),"") ->  | R45: =QQQ!AH12 -> 
A46: =TRIM(QQQ!AC13) ->  | B46: News | C46: =IFERROR(RTD("cqg.rtd", ,"ContractData",A46, "LongDescription",, "T")&" ("&RIGHT(A46,LEN(A46)-5)&")","") ->  | H46: =IFERROR(RTD("cqg.rtd", ,"ContractData",A46, "LastTradeToday",, "T"),"") ->  | I46: =IFERROR(RTD("cqg.rtd", ,"ContractData",A46, "NetLastTradeToday",, "T"),"") ->  | J46: =IFERROR(RTD("cqg.rtd", ,"ContractData",A46, "PerCentNetLastTrade",, "T")/100,"") ->  | K46: =IFERROR(I46/RTD("cqg.rtd",,"StudyData",A46, "ATR", "MaType=Sim,Period=10", "ATR","D","-1","ALL",,,"FALSE","T")/100,"") ->  | L46: =IFERROR(RTD("cqg.rtd", ,"ContractData",A46, "OPen",, "T"),"") ->  | M46: =IFERROR(RTD("cqg.rtd", ,"ContractData", A46, "HIgh",, "T"),"") ->  | N46: =IFERROR(RTD("cqg.rtd", ,"ContractData",A46, "LOw",, "T"),"") ->  | O46: =IFERROR(RTD("cqg.rtd", ,"ContractData",A46, "T_CVol",, "T"),"") ->  | Q46: =IFERROR(O46/RTD("cqg.rtd",,"StudyData",A46, "MA", "InputChoice=Vol,MAType=Sim,Period=21", "MA","D","-1","all",,,,"T"),"") ->  | R46: =QQQ!AH13 -> 
A47: =TRIM(QQQ!AC14) ->  | B47: News | C47: =IFERROR(RTD("cqg.rtd", ,"ContractData",A47, "LongDescription",, "T")&" ("&RIGHT(A47,LEN(A47)-5)&")","") ->  | H47: =IFERROR(RTD("cqg.rtd", ,"ContractData",A47, "LastTradeToday",, "T"),"") ->  | I47: =IFERROR(RTD("cqg.rtd", ,"ContractData",A47, "NetLastTradeToday",, "T"),"") ->  | J47: =IFERROR(RTD("cqg.rtd", ,"ContractData",A47, "PerCentNetLastTrade",, "T")/100,"") ->  | K47: =IFERROR(I47/RTD("cqg.rtd",,"StudyData",A47, "ATR", "MaType=Sim,Period=10", "ATR","D","-1","ALL",,,"FALSE","T")/100,"") ->  | L47: =IFERROR(RTD("cqg.rtd", ,"ContractData",A47, "OPen",, "T"),"") ->  | M47: =IFERROR(RTD("cqg.rtd", ,"ContractData", A47, "HIgh",, "T"),"") ->  | N47: =IFERROR(RTD("cqg.rtd", ,"ContractData",A47, "LOw",, "T"),"") ->  | O47: =IFERROR(RTD("cqg.rtd", ,"ContractData",A47, "T_CVol",, "T"),"") ->  | Q47: =IFERROR(O47/RTD("cqg.rtd",,"StudyData",A47, "MA", "InputChoice=Vol,MAType=Sim,Period=21", "MA","D","-1","all",,,,"T"),"") ->  | R47: =QQQ!AH14 -> 
A48: =TRIM(QQQ!AC15) ->  | B48: News | C48: =IFERROR(RTD("cqg.rtd", ,"ContractData",A48, "LongDescription",, "T")&" ("&RIGHT(A48,LEN(A48)-5)&")","") ->  | H48: =IFERROR(RTD("cqg.rtd", ,"ContractData",A48, "LastTradeToday",, "T"),"") ->  | I48: =IFERROR(RTD("cqg.rtd", ,"ContractData",A48, "NetLastTradeToday",, "T"),"") ->  | J48: =IFERROR(RTD("cqg.rtd", ,"ContractData",A48, "PerCentNetLastTrade",, "T")/100,"") ->  | K48: =IFERROR(I48/RTD("cqg.rtd",,"StudyData",A48, "ATR", "MaType=Sim,Period=10", "ATR","D","-1","ALL",,,"FALSE","T")/100,"") ->  | L48: =IFERROR(RTD("cqg.rtd", ,"ContractData",A48, "OPen",, "T"),"") ->  | M48: =IFERROR(RTD("cqg.rtd", ,"ContractData", A48, "HIgh",, "T"),"") ->  | N48: =IFERROR(RTD("cqg.rtd", ,"ContractData",A48, "LOw",, "T"),"") ->  | O48: =IFERROR(RTD("cqg.rtd", ,"ContractData",A48, "T_CVol",, "T"),"") ->  | Q48: =IFERROR(O48/RTD("cqg.rtd",,"StudyData",A48, "MA", "InputChoice=Vol,MAType=Sim,Period=21", "MA","D","-1","all",,,,"T"),"") ->  | R48: =QQQ!AH15 -> 
C49: CQG Inc., Copyright © 2025 | G49: Designed by Thom Hartle | J49: Invesco QQQ ETF tracks the Nasdaq-100 Index. | Z49: =Z52 -> 100% of the stocks in the ETF are higher today
Z51: =QQQ!B103 -> 1 | AA51: of the stocks in the ETF are higher today
Z52: =TEXT(Display!Z51,"0%")&" "&Display!AA51 -> 100% of the stocks in the ETF are higher today

Sheet QQQ (hidden)
A1: S.US.AAPL | B1: =IF(J1>0,1,0) -> 1 | C1: S.US.AAPL | D1: =RTD("cqg.rtd", ,"ContractData",C1, "LongDescription",, "T") -> Apple Inc | H1: =RTD("cqg.rtd", ,"ContractData",C1, "LastTradeToday",, "T") ->  | I1: =RTD("cqg.rtd", ,"ContractData",C1, "NetLastTradeToday",, "T") ->  | J1: =IFERROR(RTD("cqg.rtd", ,"ContractData",C1, "PerCentNetLastTrade",, "T")/100,"") ->  | K1: =RTD("cqg.rtd", ,"ContractData", C1, "T_CVol",, "T") -> 275084 | L1: 1 | M1: =IFERROR(RANK($J1,$J$1:J$101)+COUNTIF($J$1:J1,J1)-1,"") ->  | N1: =C1 -> S.US.AAPL | O1: =VLOOKUP($L1,$M$1:$N$101,2,FALSE) ->  | P1: =RTD("cqg.rtd", ,"ContractData",O1, "LongDescription",, "T") ->  | Q1: =IFERROR(RTD("cqg.rtd", ,"ContractData",O1, "PerCentNetLastTrade",, "T")/100,"") ->  | R1: ="https://finance.yahoo.com/quote/"&RIGHT(O1,(LEN(O1)-5)) ->  | T1: =IF(Q1>=0,Q1,NA()) ->  | U1: =IF(Q1>=0,NA(),-1*Q1) ->  | W1: =IFERROR(RTD("cqg.rtd", ,"ContractData",O1, "LongDescription",, "T"),"") ->  | Z1: =IFERROR(T1,Q1) ->  | AA1: =MIN(J1:J101) -> 0 | AB1: =VLOOKUP(AA1,J1:O98,4,FALSE) ->  | AC1: =VLOOKUP($AB1,$M$1:$N$101,2,FALSE) ->  | AD1: =IFERROR(RTD("cqg.rtd", ,"ContractData",AC1, "PerCentNetLastTrade",, "T")/100,"") ->  | AE1: =IFERROR(RTD("cqg.rtd", ,"ContractData",AC1, "LongDescription",, "T"),"") ->  | AF1: =IFERROR(U1,"") ->  | AG1: =IFERROR(AD1*-1,"") ->  | AH1: ="https://finance.yahoo.com/quote/"&RIGHT(AC1,(LEN(AC1)-5)) -> 
A2: S.US.ABNB | B2: =IF(J2>0,1,0) -> 1 | C2: S.US.ABNB | D2: =RTD("cqg.rtd", ,"ContractData",C2, "LongDescription",, "T") -> Airbnb, Inc. Class A | H2: =RTD("cqg.rtd", ,"ContractData",C2, "LastTradeToday",, "T") ->  | I2: =RTD("cqg.rtd", ,"ContractData",C2, "NetLastTradeToday",, "T") ->  | J2: =IFERROR(RTD("cqg.rtd", ,"ContractData",C2, "PerCentNetLastTrade",, "T")/100,"") ->  | K2: =RTD("cqg.rtd", ,"ContractData", C2, "T_CVol",, "T") -> 4927 | L2: =L1+1 -> 2 | M2: =IFERROR(RANK($J2,$J$1:J$101)+COUNTIF($J$1:J2,J2)-1,"") ->  | N2: =C2 -> S.US.ABNB | O2: =VLOOKUP($L2,$M$1:$N$101,2,FALSE) ->  | P2: =RTD("cqg.rtd", ,"ContractData",O2, "LongDescription",, "T") ->  | Q2: =IFERROR(RTD("cqg.rtd", ,"ContractData",O2, "PerCentNetLastTrade",, "T")/100,"") ->  | R2: ="https://finance.yahoo.com/quote/"&RIGHT(O2,(LEN(O2)-5)) ->  | T2: =IF(Q2>=0,Q2,NA()) ->  | U2: =IF(Q2>=0,NA(),-1*Q2) ->  | W2: =IFERROR(RTD("cqg.rtd", ,"ContractData",O2, "LongDescription",, "T"),"") ->  | Z2: =IFERROR(T2,Q2) ->  | AB2: =AB1-1 ->  | AC2: =VLOOKUP($AB2,$M$1:$N$101,2,FALSE) ->  | AD2: =IFERROR(RTD("cqg.rtd", ,"ContractData",AC2, "PerCentNetLastTrade",, "T")/100,"") ->  | AE2: =IFERROR(RTD("cqg.rtd", ,"ContractData",AC2, "LongDescription",, "T"),"") ->  | AF2: =IFERROR(U2,"") ->  | AG2: =IFERROR(AD2*-1,"") ->  | AH2: ="https://finance.yahoo.com/quote/"&RIGHT(AC2,(LEN(AC2)-5)) -> 
A3: S.US.ADBE | B3: 1 | C3: S.US.ADBE | D3: =RTD("cqg.rtd", ,"ContractData",C3, "LongDescription",, "T") -> Adobe Inc. | H3: =RTD("cqg.rtd", ,"ContractData",C3, "LastTradeToday",, "T") ->  | I3: =RTD("cqg.rtd", ,"ContractData",C3, "NetLastTradeToday",, "T") ->  | J3: =IFERROR(RTD("cqg.rtd", ,"ContractData",C3, "PerCentNetLastTrade",, "T")/100,"") ->  | K3: =RTD("cqg.rtd", ,"ContractData", C3, "T_CVol",, "T") -> 6185 | L3: =L2+1 -> 3 | M3: =IFERROR(RANK($J3,$J$1:J$101)+COUNTIF($J$1:J3,J3)-1,"") ->  | N3: S.US.ADBE | P3: =RTD("cqg.rtd", ,"ContractData",O3, "LongDescription",, "T") ->  | Q3: =IFERROR(RTD("cqg.rtd", ,"ContractData",O3, "PerCentNetLastTrade",, "T")/100,"") ->  | W3: =IFERROR(RTD("cqg.rtd", ,"ContractData",O3, "LongDescription",, "T"),"") ->  | AB3: =AB2-1 ->  | AD3: =IFERROR(RTD("cqg.rtd", ,"ContractData",AC3, "PerCentNetLastTrade",, "T")/100,"") ->  | AE3: =IFERROR(RTD("cqg.rtd", ,"ContractData",AC3, "LongDescription",, "T"),"") -> 
A4: S.US.ADI | B4: 1 | C4: S.US.ADI | D4: =RTD("cqg.rtd", ,"ContractData",C4, "LongDescription",, "T") -> Analog Devices Inc | H4: =RTD("cqg.rtd", ,"ContractData",C4, "LastTradeToday",, "T") ->  | I4: =RTD("cqg.rtd", ,"ContractData",C4, "NetLastTradeToday",, "T") ->  | J4: =IFERROR(RTD("cqg.rtd", ,"ContractData",C4, "PerCentNetLastTrade",, "T")/100,"") ->  | K4: =RTD("cqg.rtd", ,"ContractData", C4, "T_CVol",, "T") -> 1530 | L4: 4 | M4: =IFERROR(RANK($J4,$J$1:J$101)+COUNTIF($J$1:J4,J4)-1,"") ->  | N4: S.US.ADI | P4: =RTD("cqg.rtd", ,"ContractData",O4, "LongDescription",, "T") ->  | Q4: =IFERROR(RTD("cqg.rtd", ,"ContractData",O4, "PerCentNetLastTrade",, "T")/100,"") ->  | W4: =IFERROR(RTD("cqg.rtd", ,"ContractData",O4, "LongDescription",, "T"),"") ->  | AD4: =IFERROR(RTD("cqg.rtd", ,"ContractData",AC4, "PerCentNetLastTrade",, "T")/100,"") ->  | AE4: =IFERROR(RTD("cqg.rtd", ,"ContractData",AC4, "LongDescription",, "T"),"") -> 
A5: S.US.ADP | B5: 1 | C5: S.US.ADP | D5: =RTD("cqg.rtd", ,"ContractData",C5, "LongDescription",, "T") -> Auto Data Processing Inc | H5: =RTD("cqg.rtd", ,"ContractData",C5, "LastTradeToday",, "T") ->  | I5: =RTD("cqg.rtd", ,"ContractData",C5, "NetLastTradeToday",, "T") ->  | J5: =IFERROR(RTD("cqg.rtd", ,"ContractData",C5, "PerCentNetLastTrade",, "T")/100,"") ->  | K5: =RTD("cqg.rtd", ,"ContractData", C5, "T_CVol",, "T") -> 192 | L5: 5 | M5: =IFERROR(RANK($J5,$J$1:J$101)+COUNTIF($J$1:J5,J5)-1,"") ->  | N5: S.US.ADP | P5: =RTD("cqg.rtd", ,"ContractData",O5, "LongDescription",, "T") ->  | Q5: =IFERROR(RTD("cqg.rtd", ,"ContractData",O5, "PerCentNetLastTrade",, "T")/100,"") ->  | W5: =IFERROR(RTD("cqg.rtd", ,"ContractData",O5, "LongDescription",, "T"),"") ->  | AD5: =IFERROR(RTD("cqg.rtd", ,"ContractData",AC5, "PerCentNetLastTrade",, "T")/100,"") ->  | AE5: =IFERROR(RTD("cqg.rtd", ,"ContractData",AC5, "LongDescription",, "T"),"") -> 
A6: S.US.ADSK | B6: 1 | C6: S.US.ADSK | D6: =RTD("cqg.rtd", ,"ContractData",C6, "LongDescription",, "T") -> Autodesk Inc | H6: =RTD("cqg.rtd", ,"ContractData",C6, "LastTradeToday",, "T") ->  | I6: =RTD("cqg.rtd", ,"ContractData",C6, "NetLastTradeToday",, "T") ->  | J6: =IFERROR(RTD("cqg.rtd", ,"ContractData",C6, "PerCentNetLastTrade",, "T")/100,"") ->  | K6: =RTD("cqg.rtd", ,"ContractData", C6, "T_CVol",, "T") -> 550 | L6: 6 | M6: =IFERROR(RANK($J6,$J$1:J$101)+COUNTIF($J$1:J6,J6)-1,"") ->  | N6: S.US.ADSK | P6: =RTD("cqg.rtd", ,"ContractData",O6, "LongDescription",, "T") ->  | Q6: =IFERROR(RTD("cqg.rtd", ,"ContractData",O6, "PerCentNetLastTrade",, "T")/100,"") ->  | W6: =IFERROR(RTD("cqg.rtd", ,"ContractData",O6, "LongDescription",, "T"),"") ->  | AD6: =IFERROR(RTD("cqg.rtd", ,"ContractData",AC6, "PerCentNetLastTrade",, "T")/100,"") ->  | AE6: =IFERROR(RTD("cqg.rtd", ,"ContractData",AC6, "LongDescription",, "T"),"") -> 
A7: S.US.AEP | B7: 1 | C7: S.US.AEP | D7: =RTD("cqg.rtd", ,"ContractData",C7, "LongDescription",, "T") -> American Electric Power Company, Inc. | H7: =RTD("cqg.rtd", ,"ContractData",C7, "LastTradeToday",, "T") ->  | I7: =RTD("cqg.rtd", ,"ContractData",C7, "NetLastTradeToday",, "T") ->  | J7: =IFERROR(RTD("cqg.rtd", ,"ContractData",C7, "PerCentNetLastTrade",, "T")/100,"") ->  | K7: =RTD("cqg.rtd", ,"ContractData", C7, "T_CVol",, "T") -> 225 | L7: 7 | M7: =IFERROR(RANK($J7,$J$1:J$101)+COUNTIF($J$1:J7,J7)-1,"") ->  | N7: S.US.AEP | P7: =RTD("cqg.rtd", ,"ContractData",O7, "LongDescription",, "T") ->  | Q7: =IFERROR(RTD("cqg.rtd", ,"ContractData",O7, "PerCentNetLastTrade",, "T")/100,"") ->  | W7: =IFERROR(RTD("cqg.rtd", ,"ContractData",O7, "LongDescription",, "T"),"") ->  | AD7: =IFERROR(RTD("cqg.rtd", ,"ContractData",AC7, "PerCentNetLastTrade",, "T")/100,"") ->  | AE7: =IFERROR(RTD("cqg.rtd", ,"ContractData",AC7, "LongDescription",, "T"),"") -> 
A8: S.US.AMAT | B8: 1 | C8: S.US.AMAT | D8: =RTD("cqg.rtd", ,"ContractData",C8, "LongDescription",, "T") -> Applied Materials Inc | H8: =RTD("cqg.rtd", ,"ContractData",C8, "LastTradeToday",, "T") ->  | I8: =RTD("cqg.rtd", ,"ContractData",C8, "NetLastTradeToday",, "T") ->  | J8: =IFERROR(RTD("cqg.rtd", ,"ContractData",C8, "PerCentNetLastTrade",, "T")/100,"") ->  | K8: =RTD("cqg.rtd", ,"ContractData", C8, "T_CVol",, "T") -> 20298 | L8: 8 | M8: =IFERROR(RANK($J8,$J$1:J$101)+COUNTIF($J$1:J8,J8)-1,"") ->  | N8: S.US.AMAT | P8: =RTD("cqg.rtd", ,"ContractData",O8, "LongDescription",, "T") ->  | Q8: =IFERROR(RTD("cqg.rtd", ,"ContractData",O8, "PerCentNetLastTrade",, "T")/100,"") ->  | W8: =IFERROR(RTD("cqg.rtd", ,"ContractData",O8, "LongDescription",, "T"),"") ->  | AD8: =IFERROR(RTD("cqg.rtd", ,"ContractData",AC8, "PerCentNetLastTrade",, "T")/100,"") ->  | AE8: =IFERROR(RTD("cqg.rtd", ,"ContractData",AC8, "LongDescription",, "T"),"") -> 
A9: S.US.AMD | B9: 1 | C9: S.US.AMD | D9: =RTD("cqg.rtd", ,"ContractData",C9, "LongDescription",, "T") -> Advanced Micro Devices | H9: =RTD("cqg.rtd", ,"ContractData",C9, "LastTradeToday",, "T") ->  | I9: =RTD("cqg.rtd", ,"ContractData",C9, "NetLastTradeToday",, "T") ->  | J9: =IFERROR(RTD("cqg.rtd", ,"ContractData",C9, "PerCentNetLastTrade",, "T")/100,"") ->  | K9: =RTD("cqg.rtd", ,"ContractData", C9, "T_CVol",, "T") -> 469342 | L9: 9 | M9: =IFERROR(RANK($J9,$J$1:J$101)+COUNTIF($J$1:J9,J9)-1,"") ->  | N9: S.US.AMD | P9: =RTD("cqg.rtd", ,"ContractData",O9, "LongDescription",, "T") ->  | Q9: =IFERROR(RTD("cqg.rtd", ,"ContractData",O9, "PerCentNetLastTrade",, "T")/100,"") ->  | W9: =IFERROR(RTD("cqg.rtd", ,"ContractData",O9, "LongDescription",, "T"),"") ->  | AD9: =IFERROR(RTD("cqg.rtd", ,"ContractData",AC9, "PerCentNetLastTrade",, "T")/100,"") ->  | AE9: =IFERROR(RTD("cqg.rtd", ,"ContractData",AC9, "LongDescription",, "T"),"") -> 
A10: S.US.AMGN | B10: 1 | C10: S.US.AMGN | D10: =RTD("cqg.rtd", ,"ContractData",C10, "LongDescription",, "T") -> Amgen Inc | H10: =RTD("cqg.rtd", ,"ContractData",C10, "LastTradeToday",, "T") ->  | I10: =RTD("cqg.rtd", ,"ContractData",C10, "NetLastTradeToday",, "T") ->  | J10: =IFERROR(RTD("cqg.rtd", ,"ContractData",C10, "PerCentNetLastTrade",, "T")/100,"") ->  | K10: =RTD("cqg.rtd", ,"ContractData", C10, "T_CVol",, "T") -> 1564 | L10: 10 | M10: =IFERROR(RANK($J10,$J$1:J$101)+COUNTIF($J$1:J10,J10)-1,"") ->  | N10: S.US.AMGN | P10: =RTD("cqg.rtd", ,"ContractData",O10, "LongDescription",, "T") ->  | Q10: =IFERROR(RTD("cqg.rtd", ,"ContractData",O10, "PerCentNetLastTrade",, "T")/100,"") ->  | W10: =IFERROR(RTD("cqg.rtd", ,"ContractData",O10, "LongDescription",, "T"),"") ->  | AD10: =IFERROR(RTD("cqg.rtd", ,"ContractData",AC10, "PerCentNetLastTrade",, "T")/100,"") ->  | AE10: =IFERROR(RTD("cqg.rtd", ,"ContractData",AC10, "LongDescription",, "T"),"") -> 
A11: S.US.AMZN | B11: 1 | C11: S.US.AMZN | D11: =RTD("cqg.rtd", ,"ContractData",C11, "LongDescription",, "T") -> Amazon.com Inc | H11: =RTD("cqg.rtd", ,"ContractData",C11, "LastTradeToday",, "T") ->  | I11: =RTD("cqg.rtd", ,"ContractData",C11, "NetLastTradeToday",, "T") ->  | J11: =IFERROR(RTD("cqg.rtd", ,"ContractData",C11, "PerCentNetLastTrade",, "T")/100,"") ->  | K11: =RTD("cqg.rtd", ,"ContractData", C11, "T_CVol",, "T") -> 295543 | L11: 11 | M11: =IFERROR(RANK($J11,$J$1:J$101)+COUNTIF($J$1:J11,J11)-1,"") ->  | N11: S.US.AMZN | P11: =RTD("cqg.rtd", ,"ContractData",O11, "LongDescription",, "T") ->  | Q11: =IFERROR(RTD("cqg.rtd", ,"ContractData",O11, "PerCentNetLastTrade",, "T")/100,"") ->  | W11: =IFERROR(RTD("cqg.rtd", ,"ContractData",O11, "LongDescription",, "T"),"") ->  | AD11: =IFERROR(RTD("cqg.rtd", ,"ContractData",AC11, "PerCentNetLastTrade",, "T")/100,"") ->  | AE11: =IFERROR(RTD("cqg.rtd", ,"ContractData",AC11, "LongDescription",, "T"),"") -> 
A12: S.US.APP | B12: 1 | C12: S.US.APP | D12: =RTD("cqg.rtd", ,"ContractData",C12, "LongDescription",, "T") -> Applovin Corporation Class A | H12: =RTD("cqg.rtd", ,"ContractData",C12, "LastTradeToday",, "T") ->  | I12: =RTD("cqg.rtd", ,"ContractData",C12, "NetLastTradeToday",, "T") ->  | J12: =IFERROR(RTD("cqg.rtd", ,"ContractData",C12, "PerCentNetLastTrade",, "T")/100,"") ->  | K12: =RTD("cqg.rtd", ,"ContractData", C12, "T_CVol",, "T") -> 45665 | L12: 12 | M12: =IFERROR(RANK($J12,$J$1:J$101)+COUNTIF($J$1:J12,J12)-1,"") ->  | N12: S.US.APP | P12: =RTD("cqg.rtd", ,"ContractData",O12, "LongDescription",, "T") ->  | Q12: =IFERROR(RTD("cqg.rtd", ,"ContractData",O12, "PerCentNetLastTrade",, "T")/100,"") ->  | W12: =IFERROR(RTD("cqg.rtd", ,"ContractData",O12, "LongDescription",, "T"),"") ->  | AD12: =IFERROR(RTD("cqg.rtd", ,"ContractData",AC12, "PerCentNetLastTrade",, "T")/100,"") ->  | AE12: =IFERROR(RTD("cqg.rtd", ,"ContractData",AC12, "LongDescription",, "T"),"") -> 
A13: S.US.ARM | B13: 1 | C13: S.US.ARM | D13: =RTD("cqg.rtd", ,"ContractData",C13, "LongDescription",, "T") -> Arm Holdings plc | H13: =RTD("cqg.rtd", ,"ContractData",C13, "LastTradeToday",, "T") ->  | I13: =RTD("cqg.rtd", ,"ContractData",C13, "NetLastTradeToday",, "T") ->  | J13: =IFERROR(RTD("cqg.rtd", ,"ContractData",C13, "PerCentNetLastTrade",, "T")/100,"") ->  | K13: =RTD("cqg.rtd", ,"ContractData", C13, "T_CVol",, "T") -> 22687 | L13: 13 | M13: =IFERROR(RANK($J13,$J$1:J$101)+COUNTIF($J$1:J13,J13)-1,"") ->  | N13: S.US.ARM | P13: =RTD("cqg.rtd", ,"ContractData",O13, "LongDescription",, "T") ->  | Q13: =IFERROR(RTD("cqg.rtd", ,"ContractData",O13, "PerCentNetLastTrade",, "T")/100,"") ->  | W13: =IFERROR(RTD("cqg.rtd", ,"ContractData",O13, "LongDescription",, "T"),"") ->  | AD13: =IFERROR(RTD("cqg.rtd", ,"ContractData",AC13, "PerCentNetLastTrade",, "T")/100,"") ->  | AE13: =IFERROR(RTD("cqg.rtd", ,"ContractData",AC13, "LongDescription",, "T"),"") -> 
A14: S.US.ASML | B14: 1 | C14: S.US.ASML | D14: =RTD("cqg.rtd", ,"ContractData",C14, "LongDescription",, "T") -> ASML Holding NV NY Reg Shs | H14: =RTD("cqg.rtd", ,"ContractData",C14, "LastTradeToday",, "T") ->  | I14: =RTD("cqg.rtd", ,"ContractData",C14, "NetLastTradeToday",, "T") ->  | J14: =IFERROR(RTD("cqg.rtd", ,"ContractData",C14, "PerCentNetLastTrade",, "T")/100,"") ->  | K14: =RTD("cqg.rtd", ,"ContractData", C14, "T_CVol",, "T") -> 6998 | L14: 14 | M14: =IFERROR(RANK($J14,$J$1:J$101)+COUNTIF($J$1:J14,J14)-1,"") ->  | N14: S.US.ASML | P14: =RTD("cqg.rtd", ,"ContractData",O14, "LongDescription",, "T") ->  | Q14: =IFERROR(RTD("cqg.rtd", ,"ContractData",O14, "PerCentNetLastTrade",, "T")/100,"") ->  | W14: =IFERROR(RTD("cqg.rtd", ,"ContractData",O14, "LongDescription",, "T"),"") ->  | AD14: =IFERROR(RTD("cqg.rtd", ,"ContractData",AC14, "PerCentNetLastTrade",, "T")/100,"") ->  | AE14: =IFERROR(RTD("cqg.rtd", ,"ContractData",AC14, "LongDescription",, "T"),"") -> 
A15: S.US.AVGO | B15: 1 | C15: S.US.AVGO | D15: =RTD("cqg.rtd", ,"ContractData",C15, "LongDescription",, "T") -> Broadcom Inc. | H15: =RTD("cqg.rtd", ,"ContractData",C15, "LastTradeToday",, "T") ->  | I15: =RTD("cqg.rtd", ,"ContractData",C15, "NetLastTradeToday",, "T") ->  | J15: =IFERROR(RTD("cqg.rtd", ,"ContractData",C15, "PerCentNetLastTrade",, "T")/100,"") ->  | K15: =RTD("cqg.rtd", ,"ContractData", C15, "T_CVol",, "T") -> 71814 | L15: 15 | M15: =IFERROR(RANK($J15,$J$1:J$101)+COUNTIF($J$1:J15,J15)-1,"") ->  | N15: S.US.AVGO | P15: =RTD("cqg.rtd", ,"ContractData",O15, "LongDescription",, "T") ->  | Q15: =IFERROR(RTD("cqg.rtd", ,"ContractData",O15, "PerCentNetLastTrade",, "T")/100,"") ->  | W15: =IFERROR(RTD("cqg.rtd", ,"ContractData",O15, "LongDescription",, "T"),"") ->  | AD15: =IFERROR(RTD("cqg.rtd", ,"ContractData",AC15, "PerCentNetLastTrade",, "T")/100,"") ->  | AE15: =IFERROR(RTD("cqg.rtd", ,"ContractData",AC15, "LongDescription",, "T"),"") -> 
A16: S.US.AXON | B16: 1 | C16: S.US.AXON | D16: =RTD("cqg.rtd", ,"ContractData",C16, "LongDescription",, "T") -> Axon Enterprise, Inc. | H16: =RTD("cqg.rtd", ,"ContractData",C16, "LastTradeToday",, "T") ->  | I16: =RTD("cqg.rtd", ,"ContractData",C16, "NetLastTradeToday",, "T") ->  | J16: =IFERROR(RTD("cqg.rtd", ,"ContractData",C16, "PerCentNetLastTrade",, "T")/100,"") ->  | K16: =RTD("cqg.rtd", ,"ContractData", C16, "T_CVol",, "T") -> 581 | L16: 16 | M16: =IFERROR(RANK($J16,$J$1:J$101)+COUNTIF($J$1:J16,J16)-1,"") ->  | N16: S.US.AXON
A17: S.US.AZN | B17: 1 | C17: S.US.AZN | D17: =RTD("cqg.rtd", ,"ContractData",C17, "LongDescription",, "T") -> AstraZeneca plc ADS | H17: =RTD("cqg.rtd", ,"ContractData",C17, "LastTradeToday",, "T") ->  | I17: =RTD("cqg.rtd", ,"ContractData",C17, "NetLastTradeToday",, "T") ->  | J17: =IFERROR(RTD("cqg.rtd", ,"ContractData",C17, "PerCentNetLastTrade",, "T")/100,"") ->  | K17: =RTD("cqg.rtd", ,"ContractData", C17, "T_CVol",, "T") -> 19875 | L17: 17 | M17: =IFERROR(RANK($J17,$J$1:J$101)+COUNTIF($J$1:J17,J17)-1,"") ->  | N17: S.US.AZN
A18: S.US.BIIB | B18: 1 | C18: S.US.BIIB | D18: =RTD("cqg.rtd", ,"ContractData",C18, "LongDescription",, "T") -> Biogen Inc. | H18: =RTD("cqg.rtd", ,"ContractData",C18, "LastTradeToday",, "T") ->  | I18: =RTD("cqg.rtd", ,"ContractData",C18, "NetLastTradeToday",, "T") ->  | J18: =IFERROR(RTD("cqg.rtd", ,"ContractData",C18, "PerCentNetLastTrade",, "T")/100,"") ->  | K18: =RTD("cqg.rtd", ,"ContractData", C18, "T_CVol",, "T") -> 1227 | L18: 18 | M18: =IFERROR(RANK($J18,$J$1:J$101)+COUNTIF($J$1:J18,J18)-1,"") ->  | N18: S.US.BIIB
A19: S.US.BKNG | B19: 1 | C19: S.US.BKNG | D19: =RTD("cqg.rtd", ,"ContractData",C19, "LongDescription",, "T") -> Booking Holdings Inc. | H19: =RTD("cqg.rtd", ,"ContractData",C19, "LastTradeToday",, "T") ->  | I19: =RTD("cqg.rtd", ,"ContractData",C19, "NetLastTradeToday",, "T") ->  | J19: =IFERROR(RTD("cqg.rtd", ,"ContractData",C19, "PerCentNetLastTrade",, "T")/100,"") ->  | K19: =RTD("cqg.rtd", ,"ContractData", C19, "T_CVol",, "T") -> 26 | L19: 19 | M19: =IFERROR(RANK($J19,$J$1:J$101)+COUNTIF($J$1:J19,J19)-1,"") ->  | N19: S.US.BKNG
A20: S.US.BKR | B20: 1 | C20: S.US.BKR | D20: =RTD("cqg.rtd", ,"ContractData",C20, "LongDescription",, "T") -> Baker Hughes Company | H20: =RTD("cqg.rtd", ,"ContractData",C20, "LastTradeToday",, "T") ->  | I20: =RTD("cqg.rtd", ,"ContractData",C20, "NetLastTradeToday",, "T") ->  | J20: =IFERROR(RTD("cqg.rtd", ,"ContractData",C20, "PerCentNetLastTrade",, "T")/100,"") ->  | K20: =RTD("cqg.rtd", ,"ContractData", C20, "T_CVol",, "T") -> 3393 | L20: 20 | M20: =IFERROR(RANK($J20,$J$1:J$101)+COUNTIF($J$1:J20,J20)-1,"") ->  | N20: S.US.BKR
A21: S.US.CCEP | B21: 1 | C21: S.US.CCEP | D21: =RTD("cqg.rtd", ,"ContractData",C21, "LongDescription",, "T") -> Coca-Cola Europacific Partners plc | H21: =RTD("cqg.rtd", ,"ContractData",C21, "LastTradeToday",, "T") ->  | I21: =RTD("cqg.rtd", ,"ContractData",C21, "NetLastTradeToday",, "T") ->  | J21: =IFERROR(RTD("cqg.rtd", ,"ContractData",C21, "PerCentNetLastTrade",, "T")/100,"") ->  | K21: =RTD("cqg.rtd", ,"ContractData", C21, "T_CVol",, "T") -> 321 | L21: 21 | M21: =IFERROR(RANK($J21,$J$1:J$101)+COUNTIF($J$1:J21,J21)-1,"") ->  | N21: S.US.CCEP
A22: S.US.CDNS | B22: 1 | C22: S.US.CDNS | D22: =RTD("cqg.rtd", ,"ContractData",C22, "LongDescription",, "T") -> Cadence Design Systems, Inc | H22: =RTD("cqg.rtd", ,"ContractData",C22, "LastTradeToday",, "T") ->  | I22: =RTD("cqg.rtd", ,"ContractData",C22, "NetLastTradeToday",, "T") ->  | J22: =IFERROR(RTD("cqg.rtd", ,"ContractData",C22, "PerCentNetLastTrade",, "T")/100,"") ->  | K22: =RTD("cqg.rtd", ,"ContractData", C22, "T_CVol",, "T") -> 555 | L22: 22 | M22: =IFERROR(RANK($J22,$J$1:J$101)+COUNTIF($J$1:J22,J22)-1,"") ->  | N22: S.US.CDNS
A23: S.US.CDW | B23: 1 | C23: S.US.CDW | D23: =RTD("cqg.rtd", ,"ContractData",C23, "LongDescription",, "T") -> CDW Corporation | H23: =RTD("cqg.rtd", ,"ContractData",C23, "LastTradeToday",, "T") ->  | I23: =RTD("cqg.rtd", ,"ContractData",C23, "NetLastTradeToday",, "T") ->  | J23: =IFERROR(RTD("cqg.rtd", ,"ContractData",C23, "PerCentNetLastTrade",, "T")/100,"") ->  | K23: =RTD("cqg.rtd", ,"ContractData", C23, "T_CVol",, "T") -> 75 | L23: 23 | M23: =IFERROR(RANK($J23,$J$1:J$101)+COUNTIF($J$1:J23,J23)-1,"") ->  | N23: S.US.CDW
A24: S.US.CEG | B24: 1 | C24: S.US.CEG | D24: =RTD("cqg.rtd", ,"ContractData",C24, "LongDescription",, "T") -> Constellation Energy Corporation | H24: =RTD("cqg.rtd", ,"ContractData",C24, "LastTradeToday",, "T") ->  | I24: =RTD("cqg.rtd", ,"ContractData",C24, "NetLastTradeToday",, "T") ->  | J24: =IFERROR(RTD("cqg.rtd", ,"ContractData",C24, "PerCentNetLastTrade",, "T")/100,"") ->  | K24: =RTD("cqg.rtd", ,"ContractData", C24, "T_CVol",, "T") -> 7172 | L24: 24 | M24: =IFERROR(RANK($J24,$J$1:J$101)+COUNTIF($J$1:J24,J24)-1,"") ->  | N24: S.US.CEG
A25: S.US.CHTR | B25: 1 | C25: S.US.CHTR | D25: =RTD("cqg.rtd", ,"ContractData",C25, "LongDescription",, "T") -> Charter Communications, Inc. Class A | H25: =RTD("cqg.rtd", ,"ContractData",C25, "LastTradeToday",, "T") ->  | I25: =RTD("cqg.rtd", ,"ContractData",C25, "NetLastTradeToday",, "T") ->  | J25: =IFERROR(RTD("cqg.rtd", ,"ContractData",C25, "PerCentNetLastTrade",, "T")/100,"") ->  | K25: =RTD("cqg.rtd", ,"ContractData", C25, "T_CVol",, "T") -> 1490 | L25: 25 | M25: =IFERROR(RANK($J25,$J$1:J$101)+COUNTIF($J$1:J25,J25)-1,"") ->  | N25: S.US.CHTR
A26: S.US.CMCSA | B26: 1 | C26: S.US.CMCSA | D26: =RTD("cqg.rtd", ,"ContractData",C26, "LongDescription",, "T") -> Comcast Corp ClsA | H26: =RTD("cqg.rtd", ,"ContractData",C26, "LastTradeToday",, "T") ->  | I26: =RTD("cqg.rtd", ,"ContractData",C26, "NetLastTradeToday",, "T") ->  | J26: =IFERROR(RTD("cqg.rtd", ,"ContractData",C26, "PerCentNetLastTrade",, "T")/100,"") ->  | K26: =RTD("cqg.rtd", ,"ContractData", C26, "T_CVol",, "T") -> 10529 | L26: 26 | M26: =IFERROR(RANK($J26,$J$1:J$101)+COUNTIF($J$1:J26,J26)-1,"") ->  | N26: S.US.CMCSA
A27: S.US.COST | B27: 1 | C27: S.US.COST | D27: =RTD("cqg.rtd", ,"ContractData",C27, "LongDescription",, "T") -> Costco Wholesale Corp | H27: =RTD("cqg.rtd", ,"ContractData",C27, "LastTradeToday",, "T") ->  | I27: =RTD("cqg.rtd", ,"ContractData",C27, "NetLastTradeToday",, "T") ->  | J27: =IFERROR(RTD("cqg.rtd", ,"ContractData",C27, "PerCentNetLastTrade",, "T")/100,"") ->  | K27: =RTD("cqg.rtd", ,"ContractData", C27, "T_CVol",, "T") -> 4858 | L27: 27 | M27: =IFERROR(RANK($J27,$J$1:J$101)+COUNTIF($J$1:J27,J27)-1,"") ->  | N27: S.US.COST
A28: S.US.CPRT | B28: 1 | C28: S.US.CPRT | D28: =RTD("cqg.rtd", ,"ContractData",C28, "LongDescription",, "T") -> Copart Inc | H28: =RTD("cqg.rtd", ,"ContractData",C28, "LastTradeToday",, "T") ->  | I28: =RTD("cqg.rtd", ,"ContractData",C28, "NetLastTradeToday",, "T") ->  | J28: =IFERROR(RTD("cqg.rtd", ,"ContractData",C28, "PerCentNetLastTrade",, "T")/100,"") ->  | K28: =RTD("cqg.rtd", ,"ContractData", C28, "T_CVol",, "T") -> 658 | L28: 28 | M28: =IFERROR(RANK($J28,$J$1:J$101)+COUNTIF($J$1:J28,J28)-1,"") ->  | N28: S.US.CPRT
A29: S.US.CRWD | B29: 1 | C29: S.US.CRWD | D29: =RTD("cqg.rtd", ,"ContractData",C29, "LongDescription",, "T") -> CrowdStrike Holdings, Inc. Class A | H29: =RTD("cqg.rtd", ,"ContractData",C29, "LastTradeToday",, "T") ->  | I29: =RTD("cqg.rtd", ,"ContractData",C29, "NetLastTradeToday",, "T") ->  | J29: =IFERROR(RTD("cqg.rtd", ,"ContractData",C29, "PerCentNetLastTrade",, "T")/100,"") ->  | K29: =RTD("cqg.rtd", ,"ContractData", C29, "T_CVol",, "T") -> 18341 | L29: 29 | M29: =IFERROR(RANK($J29,$J$1:J$101)+COUNTIF($J$1:J29,J29)-1,"") ->  | N29: S.US.CRWD
A30: S.US.CSCO | B30: 1 | C30: S.US.CSCO | D30: =RTD("cqg.rtd", ,"ContractData",C30, "LongDescription",, "T") -> Cisco Systems Inc | H30: =RTD("cqg.rtd", ,"ContractData",C30, "LastTradeToday",, "T") ->  | I30: =RTD("cqg.rtd", ,"ContractData",C30, "NetLastTradeToday",, "T") ->  | J30: =IFERROR(RTD("cqg.rtd", ,"ContractData",C30, "PerCentNetLastTrade",, "T")/100,"") ->  | K30: =RTD("cqg.rtd", ,"ContractData", C30, "T_CVol",, "T") -> 13346 | L30: 30 | M30: =IFERROR(RANK($J30,$J$1:J$101)+COUNTIF($J$1:J30,J30)-1,"") ->  | N30: S.US.CSCO
A31: S.US.CSGP | B31: 1 | C31: S.US.CSGP | D31: =RTD("cqg.rtd", ,"ContractData",C31, "LongDescription",, "T") -> CoStar Group | H31: =RTD("cqg.rtd", ,"ContractData",C31, "LastTradeToday",, "T") ->  | I31: =RTD("cqg.rtd", ,"ContractData",C31, "NetLastTradeToday",, "T") ->  | J31: =IFERROR(RTD("cqg.rtd", ,"ContractData",C31, "PerCentNetLastTrade",, "T")/100,"") ->  | K31: =RTD("cqg.rtd", ,"ContractData", C31, "T_CVol",, "T") -> 79 | L31: 31 | M31: =IFERROR(RANK($J31,$J$1:J$101)+COUNTIF($J$1:J31,J31)-1,"") ->  | N31: S.US.CSGP
A32: S.US.CSX | B32: 1 | C32: S.US.CSX | D32: =RTD("cqg.rtd", ,"ContractData",C32, "LongDescription",, "T") -> CSX Corporation | H32: =RTD("cqg.rtd", ,"ContractData",C32, "LastTradeToday",, "T") ->  | I32: =RTD("cqg.rtd", ,"ContractData",C32, "NetLastTradeToday",, "T") ->  | J32: =IFERROR(RTD("cqg.rtd", ,"ContractData",C32, "PerCentNetLastTrade",, "T")/100,"") ->  | K32: =RTD("cqg.rtd", ,"ContractData", C32, "T_CVol",, "T") -> 2012887 | L32: 32 | M32: =IFERROR(RANK($J32,$J$1:J$101)+COUNTIF($J$1:J32,J32)-1,"") ->  | N32: S.US.CSX
A33: S.US.CTAS | B33: 1 | C33: S.US.CTAS | D33: =RTD("cqg.rtd", ,"ContractData",C33, "LongDescription",, "T") -> Cintas Corp | H33: =RTD("cqg.rtd", ,"ContractData",C33, "LastTradeToday",, "T") ->  | I33: =RTD("cqg.rtd", ,"ContractData",C33, "NetLastTradeToday",, "T") ->  | J33: =IFERROR(RTD("cqg.rtd", ,"ContractData",C33, "PerCentNetLastTrade",, "T")/100,"") ->  | K33: =RTD("cqg.rtd", ,"ContractData", C33, "T_CVol",, "T") -> 252 | L33: 33 | M33: =IFERROR(RANK($J33,$J$1:J$101)+COUNTIF($J$1:J33,J33)-1,"") ->  | N33: S.US.CTAS
A34: S.US.CTSH | B34: 1 | C34: S.US.CTSH | D34: =RTD("cqg.rtd", ,"ContractData",C34, "LongDescription",, "T") -> Cognizant Tech Solutions Corp | H34: =RTD("cqg.rtd", ,"ContractData",C34, "LastTradeToday",, "T") ->  | I34: =RTD("cqg.rtd", ,"ContractData",C34, "NetLastTradeToday",, "T") ->  | J34: =IFERROR(RTD("cqg.rtd", ,"ContractData",C34, "PerCentNetLastTrade",, "T")/100,"") ->  | K34: =RTD("cqg.rtd", ,"ContractData", C34, "T_CVol",, "T") -> 2335 | L34: 34 | M34: =IFERROR(RANK($J34,$J$1:J$101)+COUNTIF($J$1:J34,J34)-1,"") ->  | N34: S.US.CTSH
A35: S.US.DASH | B35: 1 | C35: S.US.DASH | D35: =RTD("cqg.rtd", ,"ContractData",C35, "LongDescription",, "T") -> DoorDash, Inc | H35: =RTD("cqg.rtd", ,"ContractData",C35, "LastTradeToday",, "T") ->  | I35: =RTD("cqg.rtd", ,"ContractData",C35, "NetLastTradeToday",, "T") ->  | J35: =IFERROR(RTD("cqg.rtd", ,"ContractData",C35, "PerCentNetLastTrade",, "T")/100,"") ->  | K35: =RTD("cqg.rtd", ,"ContractData", C35, "T_CVol",, "T") -> 1057 | L35: 35 | M35: =IFERROR(RANK($J35,$J$1:J$101)+COUNTIF($J$1:J35,J35)-1,"") ->  | N35: S.US.DASH
A36: S.US.DDOG | B36: 1 | C36: S.US.DDOG | D36: =RTD("cqg.rtd", ,"ContractData",C36, "LongDescription",, "T") -> Datadog, Inc. Class A | H36: =RTD("cqg.rtd", ,"ContractData",C36, "LastTradeToday",, "T") ->  | I36: =RTD("cqg.rtd", ,"ContractData",C36, "NetLastTradeToday",, "T") ->  | J36: =IFERROR(RTD("cqg.rtd", ,"ContractData",C36, "PerCentNetLastTrade",, "T")/100,"") ->  | K36: =RTD("cqg.rtd", ,"ContractData", C36, "T_CVol",, "T") -> 4023 | L36: 36 | M36: =IFERROR(RANK($J36,$J$1:J$101)+COUNTIF($J$1:J36,J36)-1,"") ->  | N36: S.US.DDOG
A37: S.US.DXCM | B37: 1 | C37: S.US.DXCM | D37: =RTD("cqg.rtd", ,"ContractData",C37, "LongDescription",, "T") -> DexCom Inc | H37: =RTD("cqg.rtd", ,"ContractData",C37, "LastTradeToday",, "T") ->  | I37: =RTD("cqg.rtd", ,"ContractData",C37, "NetLastTradeToday",, "T") ->  | J37: =IFERROR(RTD("cqg.rtd", ,"ContractData",C37, "PerCentNetLastTrade",, "T")/100,"") ->  | K37: =RTD("cqg.rtd", ,"ContractData", C37, "T_CVol",, "T") -> 699 | L37: 37 | M37: =IFERROR(RANK($J37,$J$1:J$101)+COUNTIF($J$1:J37,J37)-1,"") ->  | N37: S.US.DXCM
A38: S.US.EA | B38: 1 | C38: S.US.EA | D38: =RTD("cqg.rtd", ,"ContractData",C38, "LongDescription",, "T") -> Electronic Arts | H38: =RTD("cqg.rtd", ,"ContractData",C38, "LastTradeToday",, "T") ->  | I38: =RTD("cqg.rtd", ,"ContractData",C38, "NetLastTradeToday",, "T") ->  | J38: =IFERROR(RTD("cqg.rtd", ,"ContractData",C38, "PerCentNetLastTrade",, "T")/100,"") ->  | K38: =RTD("cqg.rtd", ,"ContractData", C38, "T_CVol",, "T") -> 161 | L38: 38 | M38: =IFERROR(RANK($J38,$J$1:J$101)+COUNTIF($J$1:J38,J38)-1,"") ->  | N38: S.US.EA
A39: S.US.EXC | B39: 1 | C39: S.US.EXC | D39: =RTD("cqg.rtd", ,"ContractData",C39, "LongDescription",, "T") -> Exelon Corporation | H39: =RTD("cqg.rtd", ,"ContractData",C39, "LastTradeToday",, "T") ->  | I39: =RTD("cqg.rtd", ,"ContractData",C39, "NetLastTradeToday",, "T") ->  | J39: =IFERROR(RTD("cqg.rtd", ,"ContractData",C39, "PerCentNetLastTrade",, "T")/100,"") ->  | K39: =RTD("cqg.rtd", ,"ContractData", C39, "T_CVol",, "T") -> 778 | L39: 39 | M39: =IFERROR(RANK($J39,$J$1:J$101)+COUNTIF($J$1:J39,J39)-1,"") ->  | N39: S.US.EXC
A40: S.US.FANG | B40: 1 | C40: S.US.FANG | D40: =RTD("cqg.rtd", ,"ContractData",C40, "LongDescription",, "T") -> Diamondback Energy, Inc. | H40: =RTD("cqg.rtd", ,"ContractData",C40, "LastTradeToday",, "T") ->  | I40: =RTD("cqg.rtd", ,"ContractData",C40, "NetLastTradeToday",, "T") ->  | J40: =IFERROR(RTD("cqg.rtd", ,"ContractData",C40, "PerCentNetLastTrade",, "T")/100,"") ->  | K40: =RTD("cqg.rtd", ,"ContractData", C40, "T_CVol",, "T") -> 1909 | L40: 40 | M40: =IFERROR(RANK($J40,$J$1:J$101)+COUNTIF($J$1:J40,J40)-1,"") ->  | N40: S.US.FANG
A41: S.US.FAST | B41: 1 | C41: S.US.FAST | D41: =RTD("cqg.rtd", ,"ContractData",C41, "LongDescription",, "T") -> Fastenal Co | H41: =RTD("cqg.rtd", ,"ContractData",C41, "LastTradeToday",, "T") ->  | I41: =RTD("cqg.rtd", ,"ContractData",C41, "NetLastTradeToday",, "T") ->  | J41: =IFERROR(RTD("cqg.rtd", ,"ContractData",C41, "PerCentNetLastTrade",, "T")/100,"") ->  | K41: =RTD("cqg.rtd", ,"ContractData", C41, "T_CVol",, "T") -> 525 | L41: 41 | M41: =IFERROR(RANK($J41,$J$1:J$101)+COUNTIF($J$1:J41,J41)-1,"") ->  | N41: S.US.FAST
A42: S.US.FTNT | B42: 1 | C42: S.US.FTNT | D42: =RTD("cqg.rtd", ,"ContractData",C42, "LongDescription",, "T") -> Fortinet, Inc. | H42: =RTD("cqg.rtd", ,"ContractData",C42, "LastTradeToday",, "T") ->  | I42: =RTD("cqg.rtd", ,"ContractData",C42, "NetLastTradeToday",, "T") ->  | J42: =IFERROR(RTD("cqg.rtd", ,"ContractData",C42, "PerCentNetLastTrade",, "T")/100,"") ->  | K42: =RTD("cqg.rtd", ,"ContractData", C42, "T_CVol",, "T") -> 11346 | L42: 42 | M42: =IFERROR(RANK($J42,$J$1:J$101)+COUNTIF($J$1:J42,J42)-1,"") ->  | N42: S.US.FTNT
A43: S.US.GEHC | B43: 1 | C43: S.US.GEHC | D43: =RTD("cqg.rtd", ,"ContractData",C43, "LongDescription",, "T") -> GE HealthCare Technologies Inc. | H43: =RTD("cqg.rtd", ,"ContractData",C43, "LastTradeToday",, "T") ->  | I43: =RTD("cqg.rtd", ,"ContractData",C43, "NetLastTradeToday",, "T") ->  | J43: =IFERROR(RTD("cqg.rtd", ,"ContractData",C43, "PerCentNetLastTrade",, "T")/100,"") ->  | K43: =RTD("cqg.rtd", ,"ContractData", C43, "T_CVol",, "T") -> 269 | L43: 43 | M43: =IFERROR(RANK($J43,$J$1:J$101)+COUNTIF($J$1:J43,J43)-1,"") ->  | N43: S.US.GEHC
A44: S.US.GFS | B44: 1 | C44: S.US.GFS | D44: =RTD("cqg.rtd", ,"ContractData",C44, "LongDescription",, "T") -> GLOBALFOUNDRIES Inc. | H44: =RTD("cqg.rtd", ,"ContractData",C44, "LastTradeToday",, "T") ->  | I44: =RTD("cqg.rtd", ,"ContractData",C44, "NetLastTradeToday",, "T") ->  | J44: =IFERROR(RTD("cqg.rtd", ,"ContractData",C44, "PerCentNetLastTrade",, "T")/100,"") ->  | K44: =RTD("cqg.rtd", ,"ContractData", C44, "T_CVol",, "T") -> 694 | L44: 44 | M44: =IFERROR(RANK($J44,$J$1:J$101)+COUNTIF($J$1:J44,J44)-1,"") ->  | N44: S.US.GFS
A45: S.US.GILD | B45: 1 | C45: S.US.GILD | D45: =RTD("cqg.rtd", ,"ContractData",C45, "LongDescription",, "T") -> Gilead Sciences Inc | H45: =RTD("cqg.rtd", ,"ContractData",C45, "LastTradeToday",, "T") ->  | I45: =RTD("cqg.rtd", ,"ContractData",C45, "NetLastTradeToday",, "T") ->  | J45: =IFERROR(RTD("cqg.rtd", ,"ContractData",C45, "PerCentNetLastTrade",, "T")/100,"") ->  | K45: =RTD("cqg.rtd", ,"ContractData", C45, "T_CVol",, "T") -> 2786 | L45: 45 | M45: =IFERROR(RANK($J45,$J$1:J$101)+COUNTIF($J$1:J45,J45)-1,"") ->  | N45: S.US.GILD
A46: S.US.GOOG | B46: 1 | C46: S.US.GOOG | D46: =RTD("cqg.rtd", ,"ContractData",C46, "LongDescription",, "T") -> Alphabet, Inc. Class C | H46: =RTD("cqg.rtd", ,"ContractData",C46, "LastTradeToday",, "T") ->  | I46: =RTD("cqg.rtd", ,"ContractData",C46, "NetLastTradeToday",, "T") ->  | J46: =IFERROR(RTD("cqg.rtd", ,"ContractData",C46, "PerCentNetLastTrade",, "T")/100,"") ->  | K46: =RTD("cqg.rtd", ,"ContractData", C46, "T_CVol",, "T") -> 141438 | L46: 46 | M46: =IFERROR(RANK($J46,$J$1:J$101)+COUNTIF($J$1:J46,J46)-1,"") ->  | N46: S.US.GOOG
A47: S.US.GOOGL | B47: 1 | C47: S.US.GOOGL | D47: =RTD("cqg.rtd", ,"ContractData",C47, "LongDescription",, "T") -> Alphabet, Inc. Class A | H47: =RTD("cqg.rtd", ,"ContractData",C47, "LastTradeToday",, "T") ->  | I47: =RTD("cqg.rtd", ,"ContractData",C47, "NetLastTradeToday",, "T") ->  | J47: =IFERROR(RTD("cqg.rtd", ,"ContractData",C47, "PerCentNetLastTrade",, "T")/100,"") ->  | K47: =RTD("cqg.rtd", ,"ContractData", C47, "T_CVol",, "T") -> 277416 | L47: 47 | M47: =IFERROR(RANK($J47,$J$1:J$101)+COUNTIF($J$1:J47,J47)-1,"") ->  | N47: S.US.GOOGL
A48: S.US.HON | B48: 1 | C48: S.US.HON | D48: =RTD("cqg.rtd", ,"ContractData",C48, "LongDescription",, "T") -> Honeywell Intl | H48: =RTD("cqg.rtd", ,"ContractData",C48, "LastTradeToday",, "T") ->  | I48: =RTD("cqg.rtd", ,"ContractData",C48, "NetLastTradeToday",, "T") ->  | J48: =IFERROR(RTD("cqg.rtd", ,"ContractData",C48, "PerCentNetLastTrade",, "T")/100,"") ->  | K48: =RTD("cqg.rtd", ,"ContractData", C48, "T_CVol",, "T") -> 1060 | L48: 48 | M48: =IFERROR(RANK($J48,$J$1:J$101)+COUNTIF($J$1:J48,J48)-1,"") ->  | N48: S.US.HON
A49: S.US.IDXX | B49: 1 | C49: S.US.IDXX | D49: =RTD("cqg.rtd", ,"ContractData",C49, "LongDescription",, "T") -> IDEXX Laboratories Inc | H49: =RTD("cqg.rtd", ,"ContractData",C49, "LastTradeToday",, "T") ->  | I49: =RTD("cqg.rtd", ,"ContractData",C49, "NetLastTradeToday",, "T") ->  | J49: =IFERROR(RTD("cqg.rtd", ,"ContractData",C49, "PerCentNetLastTrade",, "T")/100,"") ->  | K49: =RTD("cqg.rtd", ,"ContractData", C49, "T_CVol",, "T") -> 210 | L49: 49 | M49: =IFERROR(RANK($J49,$J$1:J$101)+COUNTIF($J$1:J49,J49)-1,"") ->  | N49: S.US.IDXX
A50: S.US.INTC | B50: 1 | C50: S.US.INTC | D50: =RTD("cqg.rtd", ,"ContractData",C50, "LongDescription",, "T") -> Intel Corporation | H50: =RTD("cqg.rtd", ,"ContractData",C50, "LastTradeToday",, "T") ->  | I50: =RTD("cqg.rtd", ,"ContractData",C50, "NetLastTradeToday",, "T") ->  | J50: =IFERROR(RTD("cqg.rtd", ,"ContractData",C50, "PerCentNetLastTrade",, "T")/100,"") ->  | K50: =RTD("cqg.rtd", ,"ContractData", C50, "T_CVol",, "T") -> 5968609 | L50: 50 | M50: =IFERROR(RANK($J50,$J$1:J$101)+COUNTIF($J$1:J50,J50)-1,"") ->  | N50: S.US.INTC
A51: S.US.INTU | B51: 1 | C51: S.US.INTU | D51: =RTD("cqg.rtd", ,"ContractData",C51, "LongDescription",, "T") -> Intuit Corp | H51: =RTD("cqg.rtd", ,"ContractData",C51, "LastTradeToday",, "T") ->  | I51: =RTD("cqg.rtd", ,"ContractData",C51, "NetLastTradeToday",, "T") ->  | J51: =IFERROR(RTD("cqg.rtd", ,"ContractData",C51, "PerCentNetLastTrade",, "T")/100,"") ->  | K51: =RTD("cqg.rtd", ,"ContractData", C51, "T_CVol",, "T") -> 2379 | L51: 51 | M51: =IFERROR(RANK($J51,$J$1:J$101)+COUNTIF($J$1:J51,J51)-1,"") ->  | N51: S.US.INTU
A52: S.US.ISRG | B52: 1 | C52: S.US.ISRG | D52: =RTD("cqg.rtd", ,"ContractData",C52, "LongDescription",, "T") -> Intuitive Surgical Inc | H52: =RTD("cqg.rtd", ,"ContractData",C52, "LastTradeToday",, "T") ->  | I52: =RTD("cqg.rtd", ,"ContractData",C52, "NetLastTradeToday",, "T") ->  | J52: =IFERROR(RTD("cqg.rtd", ,"ContractData",C52, "PerCentNetLastTrade",, "T")/100,"") ->  | K52: =RTD("cqg.rtd", ,"ContractData", C52, "T_CVol",, "T") -> 2096 | L52: 52 | M52: =IFERROR(RANK($J52,$J$1:J$101)+COUNTIF($J$1:J52,J52)-1,"") ->  | N52: S.US.ISRG
A53: S.US.KDP | B53: 1 | C53: S.US.KDP | D53: =RTD("cqg.rtd", ,"ContractData",C53, "LongDescription",, "T") -> Keurig Dr Pepper Inc. | H53: =RTD("cqg.rtd", ,"ContractData",C53, "LastTradeToday",, "T") ->  | I53: =RTD("cqg.rtd", ,"ContractData",C53, "NetLastTradeToday",, "T") ->  | J53: =IFERROR(RTD("cqg.rtd", ,"ContractData",C53, "PerCentNetLastTrade",, "T")/100,"") ->  | K53: =RTD("cqg.rtd", ,"ContractData", C53, "T_CVol",, "T") -> 542655 | L53: 53 | M53: =IFERROR(RANK($J53,$J$1:J$101)+COUNTIF($J$1:J53,J53)-1,"") ->  | N53: S.US.KDP
A54: S.US.KHC | B54: 1 | C54: S.US.KHC | D54: =RTD("cqg.rtd", ,"ContractData",C54, "LongDescription",, "T") -> The Kraft Heinz Company | H54: =RTD("cqg.rtd", ,"ContractData",C54, "LastTradeToday",, "T") ->  | I54: =RTD("cqg.rtd", ,"ContractData",C54, "NetLastTradeToday",, "T") ->  | J54: =IFERROR(RTD("cqg.rtd", ,"ContractData",C54, "PerCentNetLastTrade",, "T")/100,"") ->  | K54: =RTD("cqg.rtd", ,"ContractData", C54, "T_CVol",, "T") -> 8395 | L54: 54 | M54: =IFERROR(RANK($J54,$J$1:J$101)+COUNTIF($J$1:J54,J54)-1,"") ->  | N54: S.US.KHC
A55: S.US.KLAC | B55: 1 | C55: S.US.KLAC | D55: =RTD("cqg.rtd", ,"ContractData",C55, "LongDescription",, "T") -> KLA Corporation | H55: =RTD("cqg.rtd", ,"ContractData",C55, "LastTradeToday",, "T") ->  | I55: =RTD("cqg.rtd", ,"ContractData",C55, "NetLastTradeToday",, "T") ->  | J55: =IFERROR(RTD("cqg.rtd", ,"ContractData",C55, "PerCentNetLastTrade",, "T")/100,"") ->  | K55: =RTD("cqg.rtd", ,"ContractData", C55, "T_CVol",, "T") -> 844 | L55: 55 | M55: =IFERROR(RANK($J55,$J$1:J$101)+COUNTIF($J$1:J55,J55)-1,"") ->  | N55: S.US.KLAC
A56: S.US.LIN | B56: 1 | C56: S.US.LIN | D56: =RTD("cqg.rtd", ,"ContractData",C56, "LongDescription",, "T") -> Linde PLC | H56: =RTD("cqg.rtd", ,"ContractData",C56, "LastTradeToday",, "T") ->  | I56: =RTD("cqg.rtd", ,"ContractData",C56, "NetLastTradeToday",, "T") ->  | J56: =IFERROR(RTD("cqg.rtd", ,"ContractData",C56, "PerCentNetLastTrade",, "T")/100,"") ->  | K56: =RTD("cqg.rtd", ,"ContractData", C56, "T_CVol",, "T") -> 664 | L56: 56 | M56: =IFERROR(RANK($J56,$J$1:J$101)+COUNTIF($J$1:J56,J56)-1,"") ->  | N56: S.US.LIN
A57: S.US.LRCX | B57: 1 | C57: S.US.LRCX | D57: =RTD("cqg.rtd", ,"ContractData",C57, "LongDescription",, "T") -> LAM Research Corporation | H57: =RTD("cqg.rtd", ,"ContractData",C57, "LastTradeToday",, "T") ->  | I57: =RTD("cqg.rtd", ,"ContractData",C57, "NetLastTradeToday",, "T") ->  | J57: =IFERROR(RTD("cqg.rtd", ,"ContractData",C57, "PerCentNetLastTrade",, "T")/100,"") ->  | K57: =RTD("cqg.rtd", ,"ContractData", C57, "T_CVol",, "T") -> 7548 | L57: 57 | M57: =IFERROR(RANK($J57,$J$1:J$101)+COUNTIF($J$1:J57,J57)-1,"") ->  | N57: S.US.LRCX
A58: S.US.LULU | B58: 1 | C58: S.US.LULU | D58: =RTD("cqg.rtd", ,"ContractData",C58, "LongDescription",, "T") -> Lululemon Athletica Inc | H58: =RTD("cqg.rtd", ,"ContractData",C58, "LastTradeToday",, "T") ->  | I58: =RTD("cqg.rtd", ,"ContractData",C58, "NetLastTradeToday",, "T") ->  | J58: =IFERROR(RTD("cqg.rtd", ,"ContractData",C58, "PerCentNetLastTrade",, "T")/100,"") ->  | K58: =RTD("cqg.rtd", ,"ContractData", C58, "T_CVol",, "T") -> 33562 | L58: 58 | M58: =IFERROR(RANK($J58,$J$1:J$101)+COUNTIF($J$1:J58,J58)-1,"") ->  | N58: S.US.LULU
A59: S.US.MAR | B59: 1 | C59: S.US.MAR | D59: =RTD("cqg.rtd", ,"ContractData",C59, "LongDescription",, "T") -> Marriot International, Inc. | H59: =RTD("cqg.rtd", ,"ContractData",C59, "LastTradeToday",, "T") ->  | I59: =RTD("cqg.rtd", ,"ContractData",C59, "NetLastTradeToday",, "T") ->  | J59: =IFERROR(RTD("cqg.rtd", ,"ContractData",C59, "PerCentNetLastTrade",, "T")/100,"") ->  | K59: =RTD("cqg.rtd", ,"ContractData", C59, "T_CVol",, "T") -> 152 | L59: 59 | M59: =IFERROR(RANK($J59,$J$1:J$101)+COUNTIF($J$1:J59,J59)-1,"") ->  | N59: S.US.MAR
A60: S.US.MCHP | B60: 1 | C60: S.US.MCHP | D60: =RTD("cqg.rtd", ,"ContractData",C60, "LongDescription",, "T") -> Microchip Technology Inc | H60: =RTD("cqg.rtd", ,"ContractData",C60, "LastTradeToday",, "T") ->  | I60: =RTD("cqg.rtd", ,"ContractData",C60, "NetLastTradeToday",, "T") ->  | J60: =IFERROR(RTD("cqg.rtd", ,"ContractData",C60, "PerCentNetLastTrade",, "T")/100,"") ->  | K60: =RTD("cqg.rtd", ,"ContractData", C60, "T_CVol",, "T") -> 1431 | L60: 60 | M60: =IFERROR(RANK($J60,$J$1:J$101)+COUNTIF($J$1:J60,J60)-1,"") ->  | N60: S.US.MCHP
A61: S.US.MDLZ | B61: 1 | C61: S.US.MDLZ | D61: =RTD("cqg.rtd", ,"ContractData",C61, "LongDescription",, "T") -> Mondelez International, Inc. | H61: =RTD("cqg.rtd", ,"ContractData",C61, "LastTradeToday",, "T") ->  | I61: =RTD("cqg.rtd", ,"ContractData",C61, "NetLastTradeToday",, "T") ->  | J61: =IFERROR(RTD("cqg.rtd", ,"ContractData",C61, "PerCentNetLastTrade",, "T")/100,"") ->  | K61: =RTD("cqg.rtd", ,"ContractData", C61, "T_CVol",, "T") -> 1457 | L61: 61 | M61: =IFERROR(RANK($J61,$J$1:J$101)+COUNTIF($J$1:J61,J61)-1,"") ->  | N61: S.US.MDLZ
A62: S.US.MELI | B62: 1 | C62: S.US.MELI | D62: =RTD("cqg.rtd", ,"ContractData",C62, "LongDescription",, "T") -> MercadoLibre Inc | H62: =RTD("cqg.rtd", ,"ContractData",C62, "LastTradeToday",, "T") ->  | I62: =RTD("cqg.rtd", ,"ContractData",C62, "NetLastTradeToday",, "T") ->  | J62: =IFERROR(RTD("cqg.rtd", ,"ContractData",C62, "PerCentNetLastTrade",, "T")/100,"") ->  | K62: =RTD("cqg.rtd", ,"ContractData", C62, "T_CVol",, "T") -> 458 | L62: 62 | M62: =IFERROR(RANK($J62,$J$1:J$101)+COUNTIF($J$1:J62,J62)-1,"") ->  | N62: S.US.MELI
A63: S.US.META | B63: 1 | C63: S.US.META | D63: =RTD("cqg.rtd", ,"ContractData",C63, "LongDescription",, "T") -> Meta Platforms, Inc. | H63: =RTD("cqg.rtd", ,"ContractData",C63, "LastTradeToday",, "T") ->  | I63: =RTD("cqg.rtd", ,"ContractData",C63, "NetLastTradeToday",, "T") ->  | J63: =IFERROR(RTD("cqg.rtd", ,"ContractData",C63, "PerCentNetLastTrade",, "T")/100,"") ->  | K63: =RTD("cqg.rtd", ,"ContractData", C63, "T_CVol",, "T") -> 77467 | L63: 63 | M63: =IFERROR(RANK($J63,$J$1:J$101)+COUNTIF($J$1:J63,J63)-1,"") ->  | N63: S.US.META
A64: S.US.MNST | B64: 1 | C64: S.US.MNST | D64: =RTD("cqg.rtd", ,"ContractData",C64, "LongDescription",, "T") -> Monster Beverage Corporation | H64: =RTD("cqg.rtd", ,"ContractData",C64, "LastTradeToday",, "T") ->  | I64: =RTD("cqg.rtd", ,"ContractData",C64, "NetLastTradeToday",, "T") ->  | J64: =IFERROR(RTD("cqg.rtd", ,"ContractData",C64, "PerCentNetLastTrade",, "T")/100,"") ->  | K64: =RTD("cqg.rtd", ,"ContractData", C64, "T_CVol",, "T") -> 1497 | L64: 64 | M64: =IFERROR(RANK($J64,$J$1:J$101)+COUNTIF($J$1:J64,J64)-1,"") ->  | N64: S.US.MNST
A65: S.US.MRVL | B65: 1 | C65: S.US.MRVL | D65: =RTD("cqg.rtd", ,"ContractData",C65, "LongDescription",, "T") -> Marvell Technology, Inc. | H65: =RTD("cqg.rtd", ,"ContractData",C65, "LastTradeToday",, "T") ->  | I65: =RTD("cqg.rtd", ,"ContractData",C65, "NetLastTradeToday",, "T") ->  | J65: =IFERROR(RTD("cqg.rtd", ,"ContractData",C65, "PerCentNetLastTrade",, "T")/100,"") ->  | K65: =RTD("cqg.rtd", ,"ContractData", C65, "T_CVol",, "T") -> 100238 | L65: 65 | M65: =IFERROR(RANK($J65,$J$1:J$101)+COUNTIF($J$1:J65,J65)-1,"") ->  | N65: S.US.MRVL
A66: S.US.MSFT | B66: =IF(J66>0,1,0) -> 1 | C66: S.US.MSFT | D66: =RTD("cqg.rtd", ,"ContractData",C66, "LongDescription",, "T") -> Microsoft Corporation | H66: =RTD("cqg.rtd", ,"ContractData",C66, "LastTradeToday",, "T") ->  | I66: =RTD("cqg.rtd", ,"ContractData",C66, "NetLastTradeToday",, "T") ->  | J66: =IFERROR(RTD("cqg.rtd", ,"ContractData",C66, "PerCentNetLastTrade",, "T")/100,"") ->  | K66: =RTD("cqg.rtd", ,"ContractData", C66, "T_CVol",, "T") -> 1589867 | L66: 66 | M66: =IFERROR(RANK($J66,$J$1:J$101)+COUNTIF($J$1:J66,J66)-1,"") ->  | N66: =C66 -> S.US.MSFT | O66: =VLOOKUP($L66,$M$1:$N$101,2,FALSE) -> 
A67: S.US.MSTR | B67: 1 | C67: S.US.MSTR | D67: =RTD("cqg.rtd", ,"ContractData",C67, "LongDescription",, "T") -> Strategy Inc | H67: =RTD("cqg.rtd", ,"ContractData",C67, "LastTradeToday",, "T") ->  | I67: =RTD("cqg.rtd", ,"ContractData",C67, "NetLastTradeToday",, "T") ->  | J67: =IFERROR(RTD("cqg.rtd", ,"ContractData",C67, "PerCentNetLastTrade",, "T")/100,"") ->  | K67: =RTD("cqg.rtd", ,"ContractData", C67, "T_CVol",, "T") -> 404109 | L67: =L66+1 -> 67 | M67: =IFERROR(RANK($J67,$J$1:J$101)+COUNTIF($J$1:J67,J67)-1,"") ->  | N67: S.US.MSTR
A68: S.US.MU | B68: 1 | C68: S.US.MU | D68: =RTD("cqg.rtd", ,"ContractData",C68, "LongDescription",, "T") -> Micron Technology Inc | H68: =RTD("cqg.rtd", ,"ContractData",C68, "LastTradeToday",, "T") ->  | I68: =RTD("cqg.rtd", ,"ContractData",C68, "NetLastTradeToday",, "T") ->  | J68: =IFERROR(RTD("cqg.rtd", ,"ContractData",C68, "PerCentNetLastTrade",, "T")/100,"") ->  | K68: =RTD("cqg.rtd", ,"ContractData", C68, "T_CVol",, "T") -> 139239 | L68: 68 | M68: =IFERROR(RANK($J68,$J$1:J$101)+COUNTIF($J$1:J68,J68)-1,"") ->  | N68: S.US.MU
A69: S.US.NFLX | B69: 1 | C69: S.US.NFLX | D69: =RTD("cqg.rtd", ,"ContractData",C69, "LongDescription",, "T") -> Netflix Inc | H69: =RTD("cqg.rtd", ,"ContractData",C69, "LastTradeToday",, "T") ->  | I69: =RTD("cqg.rtd", ,"ContractData",C69, "NetLastTradeToday",, "T") ->  | J69: =IFERROR(RTD("cqg.rtd", ,"ContractData",C69, "PerCentNetLastTrade",, "T")/100,"") ->  | K69: =RTD("cqg.rtd", ,"ContractData", C69, "T_CVol",, "T") -> 11393 | L69: 69 | M69: =IFERROR(RANK($J69,$J$1:J$101)+COUNTIF($J$1:J69,J69)-1,"") ->  | N69: S.US.NFLX
A70: S.US.NVDA | B70: 1 | C70: S.US.NVDA | D70: =RTD("cqg.rtd", ,"ContractData",C70, "LongDescription",, "T") -> NVIDIA Corp | H70: =RTD("cqg.rtd", ,"ContractData",C70, "LastTradeToday",, "T") ->  | I70: =RTD("cqg.rtd", ,"ContractData",C70, "NetLastTradeToday",, "T") ->  | J70: =IFERROR(RTD("cqg.rtd", ,"ContractData",C70, "PerCentNetLastTrade",, "T")/100,"") ->  | K70: =RTD("cqg.rtd", ,"ContractData", C70, "T_CVol",, "T") -> 3113897 | L70: 70 | M70: =IFERROR(RANK($J70,$J$1:J$101)+COUNTIF($J$1:J70,J70)-1,"") ->  | N70: S.US.NVDA
A71: S.US.NXPI | B71: 1 | C71: S.US.NXPI | D71: =RTD("cqg.rtd", ,"ContractData",C71, "LongDescription",, "T") -> NXP Semiconductors N.V. | H71: =RTD("cqg.rtd", ,"ContractData",C71, "LastTradeToday",, "T") ->  | I71: =RTD("cqg.rtd", ,"ContractData",C71, "NetLastTradeToday",, "T") ->  | J71: =IFERROR(RTD("cqg.rtd", ,"ContractData",C71, "PerCentNetLastTrade",, "T")/100,"") ->  | K71: =RTD("cqg.rtd", ,"ContractData", C71, "T_CVol",, "T") -> 1187 | L71: 71 | M71: =IFERROR(RANK($J71,$J$1:J$101)+COUNTIF($J$1:J71,J71)-1,"") ->  | N71: S.US.NXPI
A72: S.US.ODFL | B72: 1 | C72: S.US.ODFL | D72: =RTD("cqg.rtd", ,"ContractData",C72, "LongDescription",, "T") -> Old Dominion Freight Line Inc | H72: =RTD("cqg.rtd", ,"ContractData",C72, "LastTradeToday",, "T") ->  | I72: =RTD("cqg.rtd", ,"ContractData",C72, "NetLastTradeToday",, "T") ->  | J72: =IFERROR(RTD("cqg.rtd", ,"ContractData",C72, "PerCentNetLastTrade",, "T")/100,"") ->  | K72: =RTD("cqg.rtd", ,"ContractData", C72, "T_CVol",, "T") -> 86 | L72: 72 | M72: =IFERROR(RANK($J72,$J$1:J$101)+COUNTIF($J$1:J72,J72)-1,"") ->  | N72: S.US.ODFL
A73: S.US.ON | B73: 1 | C73: S.US.ON | D73: =RTD("cqg.rtd", ,"ContractData",C73, "LongDescription",, "T") -> ON Semiconductor Corp | H73: =RTD("cqg.rtd", ,"ContractData",C73, "LastTradeToday",, "T") ->  | I73: =RTD("cqg.rtd", ,"ContractData",C73, "NetLastTradeToday",, "T") ->  | J73: =IFERROR(RTD("cqg.rtd", ,"ContractData",C73, "PerCentNetLastTrade",, "T")/100,"") ->  | K73: =RTD("cqg.rtd", ,"ContractData", C73, "T_CVol",, "T") -> 7762 | L73: 73 | M73: =IFERROR(RANK($J73,$J$1:J$101)+COUNTIF($J$1:J73,J73)-1,"") ->  | N73: S.US.ON
A74: S.US.ORLY | B74: 1 | C74: S.US.ORLY | D74: =RTD("cqg.rtd", ,"ContractData",C74, "LongDescription",, "T") -> OReilly Automotive Inc | H74: =RTD("cqg.rtd", ,"ContractData",C74, "LastTradeToday",, "T") ->  | I74: =RTD("cqg.rtd", ,"ContractData",C74, "NetLastTradeToday",, "T") ->  | J74: =IFERROR(RTD("cqg.rtd", ,"ContractData",C74, "PerCentNetLastTrade",, "T")/100,"") ->  | K74: =RTD("cqg.rtd", ,"ContractData", C74, "T_CVol",, "T") -> 1064 | L74: 74 | M74: =IFERROR(RANK($J74,$J$1:J$101)+COUNTIF($J$1:J74,J74)-1,"") ->  | N74: S.US.ORLY
A75: S.US.PANW | B75: 1 | C75: S.US.PANW | D75: =RTD("cqg.rtd", ,"ContractData",C75, "LongDescription",, "T") -> Palo Alto Networks, Inc. | H75: =RTD("cqg.rtd", ,"ContractData",C75, "LastTradeToday",, "T") ->  | I75: =RTD("cqg.rtd", ,"ContractData",C75, "NetLastTradeToday",, "T") ->  | J75: =IFERROR(RTD("cqg.rtd", ,"ContractData",C75, "PerCentNetLastTrade",, "T")/100,"") ->  | K75: =RTD("cqg.rtd", ,"ContractData", C75, "T_CVol",, "T") -> 37796 | L75: 75 | M75: =IFERROR(RANK($J75,$J$1:J$101)+COUNTIF($J$1:J75,J75)-1,"") ->  | N75: S.US.PANW
A76: S.US.PAYX | B76: 1 | C76: S.US.PAYX | D76: =RTD("cqg.rtd", ,"ContractData",C76, "LongDescription",, "T") -> Paychex Inc | H76: =RTD("cqg.rtd", ,"ContractData",C76, "LastTradeToday",, "T") ->  | I76: =RTD("cqg.rtd", ,"ContractData",C76, "NetLastTradeToday",, "T") ->  | J76: =IFERROR(RTD("cqg.rtd", ,"ContractData",C76, "PerCentNetLastTrade",, "T")/100,"") ->  | K76: =RTD("cqg.rtd", ,"ContractData", C76, "T_CVol",, "T") -> 42 | L76: 76 | M76: =IFERROR(RANK($J76,$J$1:J$101)+COUNTIF($J$1:J76,J76)-1,"") ->  | N76: S.US.PAYX
A77: S.US.PCAR | B77: 1 | C77: S.US.PCAR | D77: =RTD("cqg.rtd", ,"ContractData",C77, "LongDescription",, "T") -> PACCAR Inc | H77: =RTD("cqg.rtd", ,"ContractData",C77, "LastTradeToday",, "T") ->  | I77: =RTD("cqg.rtd", ,"ContractData",C77, "NetLastTradeToday",, "T") ->  | J77: =IFERROR(RTD("cqg.rtd", ,"ContractData",C77, "PerCentNetLastTrade",, "T")/100,"") ->  | K77: =RTD("cqg.rtd", ,"ContractData", C77, "T_CVol",, "T") -> 1200 | L77: 77 | M77: =IFERROR(RANK($J77,$J$1:J$101)+COUNTIF($J$1:J77,J77)-1,"") ->  | N77: S.US.PCAR
A78: S.US.PDD | B78: 1 | C78: S.US.PDD | D78: =RTD("cqg.rtd", ,"ContractData",C78, "LongDescription",, "T") -> PDD Holdings Inc. | H78: =RTD("cqg.rtd", ,"ContractData",C78, "LastTradeToday",, "T") ->  | I78: =RTD("cqg.rtd", ,"ContractData",C78, "NetLastTradeToday",, "T") ->  | J78: =IFERROR(RTD("cqg.rtd", ,"ContractData",C78, "PerCentNetLastTrade",, "T")/100,"") ->  | K78: =RTD("cqg.rtd", ,"ContractData", C78, "T_CVol",, "T") -> 4631929 | L78: 78 | M78: =IFERROR(RANK($J78,$J$1:J$101)+COUNTIF($J$1:J78,J78)-1,"") ->  | N78: S.US.PDD
A79: S.US.PEP | B79: 1 | C79: S.US.PEP | D79: =RTD("cqg.rtd", ,"ContractData",C79, "LongDescription",, "T") -> PepsiCo Inc | H79: =RTD("cqg.rtd", ,"ContractData",C79, "LastTradeToday",, "T") ->  | I79: =RTD("cqg.rtd", ,"ContractData",C79, "NetLastTradeToday",, "T") ->  | J79: =IFERROR(RTD("cqg.rtd", ,"ContractData",C79, "PerCentNetLastTrade",, "T")/100,"") ->  | K79: =RTD("cqg.rtd", ,"ContractData", C79, "T_CVol",, "T") -> 10608 | L79: 79 | M79: =IFERROR(RANK($J79,$J$1:J$101)+COUNTIF($J$1:J79,J79)-1,"") ->  | N79: S.US.PEP
A80: S.US.PLTR | B80: 1 | C80: S.US.PLTR | D80: =RTD("cqg.rtd", ,"ContractData",C80, "LongDescription",, "T") -> Palantir Technologies Inc. | H80: =RTD("cqg.rtd", ,"ContractData",C80, "LastTradeToday",, "T") ->  | I80: =RTD("cqg.rtd", ,"ContractData",C80, "NetLastTradeToday",, "T") ->  | J80: =IFERROR(RTD("cqg.rtd", ,"ContractData",C80, "PerCentNetLastTrade",, "T")/100,"") ->  | K80: =RTD("cqg.rtd", ,"ContractData", C80, "T_CVol",, "T") -> 1271099 | L80: 80 | M80: =IFERROR(RANK($J80,$J$1:J$101)+COUNTIF($J$1:J80,J80)-1,"") ->  | N80: S.US.PLTR
A81: S.US.PYPL | B81: 1 | C81: S.US.PYPL | D81: =RTD("cqg.rtd", ,"ContractData",C81, "LongDescription",, "T") -> PayPal Holdings, Inc. | H81: =RTD("cqg.rtd", ,"ContractData",C81, "LastTradeToday",, "T") ->  | I81: =RTD("cqg.rtd", ,"ContractData",C81, "NetLastTradeToday",, "T") ->  | J81: =IFERROR(RTD("cqg.rtd", ,"ContractData",C81, "PerCentNetLastTrade",, "T")/100,"") ->  | K81: =RTD("cqg.rtd", ,"ContractData", C81, "T_CVol",, "T") -> 36735 | L81: 81 | M81: =IFERROR(RANK($J81,$J$1:J$101)+COUNTIF($J$1:J81,J81)-1,"") ->  | N81: S.US.PYPL
A82: S.US.QCOM | B82: 1 | C82: S.US.QCOM | D82: =RTD("cqg.rtd", ,"ContractData",C82, "LongDescription",, "T") -> QUALCOMM Inc | H82: =RTD("cqg.rtd", ,"ContractData",C82, "LastTradeToday",, "T") ->  | I82: =RTD("cqg.rtd", ,"ContractData",C82, "NetLastTradeToday",, "T") ->  | J82: =IFERROR(RTD("cqg.rtd", ,"ContractData",C82, "PerCentNetLastTrade",, "T")/100,"") ->  | K82: =RTD("cqg.rtd", ,"ContractData", C82, "T_CVol",, "T") -> 9587 | L82: 82 | M82: =IFERROR(RANK($J82,$J$1:J$101)+COUNTIF($J$1:J82,J82)-1,"") ->  | N82: S.US.QCOM
A83: S.US.REGN | B83: 1 | C83: S.US.REGN | D83: =RTD("cqg.rtd", ,"ContractData",C83, "LongDescription",, "T") -> Regeneron Pharm Inc | H83: =RTD("cqg.rtd", ,"ContractData",C83, "LastTradeToday",, "T") ->  | I83: =RTD("cqg.rtd", ,"ContractData",C83, "NetLastTradeToday",, "T") ->  | J83: =IFERROR(RTD("cqg.rtd", ,"ContractData",C83, "PerCentNetLastTrade",, "T")/100,"") ->  | K83: =RTD("cqg.rtd", ,"ContractData", C83, "T_CVol",, "T") -> 1265 | L83: 83 | M83: =IFERROR(RANK($J83,$J$1:J$101)+COUNTIF($J$1:J83,J83)-1,"") ->  | N83: S.US.REGN
A84: S.US.ROP | B84: 1 | C84: S.US.ROP | D84: =RTD("cqg.rtd", ,"ContractData",C84, "LongDescription",, "T") -> Roper Technologies, Inc. | H84: =RTD("cqg.rtd", ,"ContractData",C84, "LastTradeToday",, "T") ->  | I84: =RTD("cqg.rtd", ,"ContractData",C84, "NetLastTradeToday",, "T") ->  | J84: =IFERROR(RTD("cqg.rtd", ,"ContractData",C84, "PerCentNetLastTrade",, "T")/100,"") ->  | K84: =RTD("cqg.rtd", ,"ContractData", C84, "T_CVol",, "T") -> 381 | L84: 84 | M84: =IFERROR(RANK($J84,$J$1:J$101)+COUNTIF($J$1:J84,J84)-1,"") ->  | N84: S.US.ROP
A85: S.US.ROST | B85: 1 | C85: S.US.ROST | D85: =RTD("cqg.rtd", ,"ContractData",C85, "LongDescription",, "T") -> Ross Stores Inc | H85: =RTD("cqg.rtd", ,"ContractData",C85, "LastTradeToday",, "T") ->  | I85: =RTD("cqg.rtd", ,"ContractData",C85, "NetLastTradeToday",, "T") ->  | J85: =IFERROR(RTD("cqg.rtd", ,"ContractData",C85, "PerCentNetLastTrade",, "T")/100,"") ->  | K85: =RTD("cqg.rtd", ,"ContractData", C85, "T_CVol",, "T") -> 414 | L85: 85 | M85: =IFERROR(RANK($J85,$J$1:J$101)+COUNTIF($J$1:J85,J85)-1,"") ->  | N85: S.US.ROST
A86: S.US.SBUX | B86: 1 | C86: S.US.SBUX | D86: =RTD("cqg.rtd", ,"ContractData",C86, "LongDescription",, "T") -> Starbucks Corp | H86: =RTD("cqg.rtd", ,"ContractData",C86, "LastTradeToday",, "T") ->  | I86: =RTD("cqg.rtd", ,"ContractData",C86, "NetLastTradeToday",, "T") ->  | J86: =IFERROR(RTD("cqg.rtd", ,"ContractData",C86, "PerCentNetLastTrade",, "T")/100,"") ->  | K86: =RTD("cqg.rtd", ,"ContractData", C86, "T_CVol",, "T") -> 30211 | L86: 86 | M86: =IFERROR(RANK($J86,$J$1:J$101)+COUNTIF($J$1:J86,J86)-1,"") ->  | N86: S.US.SBUX
A87: S.US.SHOP | B87: 1 | C87: S.US.SHOP | D87: =RTD("cqg.rtd", ,"ContractData",C87, "LongDescription",, "T") -> Shopify Inc. | H87: =RTD("cqg.rtd", ,"ContractData",C87, "LastTradeToday",, "T") ->  | I87: =RTD("cqg.rtd", ,"ContractData",C87, "NetLastTradeToday",, "T") ->  | J87: =IFERROR(RTD("cqg.rtd", ,"ContractData",C87, "PerCentNetLastTrade",, "T")/100,"") ->  | K87: =RTD("cqg.rtd", ,"ContractData", C87, "T_CVol",, "T") -> 17225 | L87: 87 | M87: =IFERROR(RANK($J87,$J$1:J$101)+COUNTIF($J$1:J87,J87)-1,"") ->  | N87: S.US.SHOP
A88: S.US.SNPS | B88: 1 | C88: S.US.SNPS | D88: =RTD("cqg.rtd", ,"ContractData",C88, "LongDescription",, "T") -> Synopsis | H88: =RTD("cqg.rtd", ,"ContractData",C88, "LastTradeToday",, "T") ->  | I88: =RTD("cqg.rtd", ,"ContractData",C88, "NetLastTradeToday",, "T") ->  | J88: =IFERROR(RTD("cqg.rtd", ,"ContractData",C88, "PerCentNetLastTrade",, "T")/100,"") ->  | K88: =RTD("cqg.rtd", ,"ContractData", C88, "T_CVol",, "T") -> 461 | L88: 88 | M88: =IFERROR(RANK($J88,$J$1:J$101)+COUNTIF($J$1:J88,J88)-1,"") ->  | N88: S.US.SNPS
A89: S.US.TEAM | B89: 1 | C89: S.US.TEAM | D89: =RTD("cqg.rtd", ,"ContractData",C89, "LongDescription",, "T") -> Atlassian Corporation Plc | H89: =RTD("cqg.rtd", ,"ContractData",C89, "LastTradeToday",, "T") ->  | I89: =RTD("cqg.rtd", ,"ContractData",C89, "NetLastTradeToday",, "T") ->  | J89: =IFERROR(RTD("cqg.rtd", ,"ContractData",C89, "PerCentNetLastTrade",, "T")/100,"") ->  | K89: =RTD("cqg.rtd", ,"ContractData", C89, "T_CVol",, "T") -> 1794 | L89: 89 | M89: =IFERROR(RANK($J89,$J$1:J$101)+COUNTIF($J$1:J89,J89)-1,"") ->  | N89: S.US.TEAM
A90: S.US.TMUS | B90: 1 | C90: S.US.TMUS | D90: =RTD("cqg.rtd", ,"ContractData",C90, "LongDescription",, "T") -> T-Mobile US, Inc. | H90: =RTD("cqg.rtd", ,"ContractData",C90, "LastTradeToday",, "T") ->  | I90: =RTD("cqg.rtd", ,"ContractData",C90, "NetLastTradeToday",, "T") ->  | J90: =IFERROR(RTD("cqg.rtd", ,"ContractData",C90, "PerCentNetLastTrade",, "T")/100,"") ->  | K90: =RTD("cqg.rtd", ,"ContractData", C90, "T_CVol",, "T") -> 562124 | L90: 90 | M90: =IFERROR(RANK($J90,$J$1:J$101)+COUNTIF($J$1:J90,J90)-1,"") ->  | N90: S.US.TMUS
A91: S.US.TRI | B91: 1 | C91: S.US.TRI | D91: =RTD("cqg.rtd", ,"ContractData",C91, "LongDescription",, "T") -> Thomson Reuters Corp | H91: =RTD("cqg.rtd", ,"ContractData",C91, "LastTradeToday",, "T") ->  | I91: =RTD("cqg.rtd", ,"ContractData",C91, "NetLastTradeToday",, "T") ->  | J91: =IFERROR(RTD("cqg.rtd", ,"ContractData",C91, "PerCentNetLastTrade",, "T")/100,"") ->  | K91: =RTD("cqg.rtd", ,"ContractData", C91, "T_CVol",, "T") -> 139 | L91: 91 | M91: =IFERROR(RANK($J91,$J$1:J$101)+COUNTIF($J$1:J91,J91)-1,"") ->  | N91: S.US.TRI
A92: S.US.TSLA | B92: 1 | C92: S.US.TSLA | D92: =RTD("cqg.rtd", ,"ContractData",C92, "LongDescription",, "T") -> Tesla Inc. | H92: =RTD("cqg.rtd", ,"ContractData",C92, "LastTradeToday",, "T") ->  | I92: =RTD("cqg.rtd", ,"ContractData",C92, "NetLastTradeToday",, "T") ->  | J92: =IFERROR(RTD("cqg.rtd", ,"ContractData",C92, "PerCentNetLastTrade",, "T")/100,"") ->  | K92: =RTD("cqg.rtd", ,"ContractData", C92, "T_CVol",, "T") -> 1487050 | L92: 92 | M92: =IFERROR(RANK($J92,$J$1:J$101)+COUNTIF($J$1:J92,J92)-1,"") ->  | N92: S.US.TSLA
A93: S.US.TTD | B93: 1 | C93: S.US.TTD | D93: =RTD("cqg.rtd", ,"ContractData",C93, "LongDescription",, "T") -> The Trade Desk, Inc. Class A | H93: =RTD("cqg.rtd", ,"ContractData",C93, "LastTradeToday",, "T") ->  | I93: =RTD("cqg.rtd", ,"ContractData",C93, "NetLastTradeToday",, "T") ->  | J93: =IFERROR(RTD("cqg.rtd", ,"ContractData",C93, "PerCentNetLastTrade",, "T")/100,"") ->  | K93: =RTD("cqg.rtd", ,"ContractData", C93, "T_CVol",, "T") -> 74299 | L93: 93 | M93: =IFERROR(RANK($J93,$J$1:J$101)+COUNTIF($J$1:J93,J93)-1,"") ->  | N93: S.US.TTD
A94: S.US.TTWO | B94: 1 | C94: S.US.TTWO | D94: =RTD("cqg.rtd", ,"ContractData",C94, "LongDescription",, "T") -> Take-Two Interactive Software | H94: =RTD("cqg.rtd", ,"ContractData",C94, "LastTradeToday",, "T") ->  | I94: =RTD("cqg.rtd", ,"ContractData",C94, "NetLastTradeToday",, "T") ->  | J94: =IFERROR(RTD("cqg.rtd", ,"ContractData",C94, "PerCentNetLastTrade",, "T")/100,"") ->  | K94: =RTD("cqg.rtd", ,"ContractData", C94, "T_CVol",, "T") -> 993 | L94: 94 | M94: =IFERROR(RANK($J94,$J$1:J$101)+COUNTIF($J$1:J94,J94)-1,"") ->  | N94: S.US.TTWO
A95: S.US.TXN | B95: 1 | C95: S.US.TXN | D95: =RTD("cqg.rtd", ,"ContractData",C95, "LongDescription",, "T") -> Texas Instruments Inc | H95: =RTD("cqg.rtd", ,"ContractData",C95, "LastTradeToday",, "T") ->  | I95: =RTD("cqg.rtd", ,"ContractData",C95, "NetLastTradeToday",, "T") ->  | J95: =IFERROR(RTD("cqg.rtd", ,"ContractData",C95, "PerCentNetLastTrade",, "T")/100,"") ->  | K95: =RTD("cqg.rtd", ,"ContractData", C95, "T_CVol",, "T") -> 3370 | L95: 95 | M95: =IFERROR(RANK($J95,$J$1:J$101)+COUNTIF($J$1:J95,J95)-1,"") ->  | N95: S.US.TXN
A96: S.US.VRSK | B96: 1 | C96: S.US.VRSK | D96: =RTD("cqg.rtd", ,"ContractData",C96, "LongDescription",, "T") -> Verisk Analytics, Inc. | H96: =RTD("cqg.rtd", ,"ContractData",C96, "LastTradeToday",, "T") ->  | I96: =RTD("cqg.rtd", ,"ContractData",C96, "NetLastTradeToday",, "T") ->  | J96: =IFERROR(RTD("cqg.rtd", ,"ContractData",C96, "PerCentNetLastTrade",, "T")/100,"") ->  | K96: =RTD("cqg.rtd", ,"ContractData", C96, "T_CVol",, "T") -> 37 | L96: 96 | M96: =IFERROR(RANK($J96,$J$1:J$101)+COUNTIF($J$1:J96,J96)-1,"") ->  | N96: S.US.VRSK
A97: S.US.VRTX | B97: 1 | C97: S.US.VRTX | D97: =RTD("cqg.rtd", ,"ContractData",C97, "LongDescription",, "T") -> Vertex Pharmaceuticals Incorporated | H97: =RTD("cqg.rtd", ,"ContractData",C97, "LastTradeToday",, "T") ->  | I97: =RTD("cqg.rtd", ,"ContractData",C97, "NetLastTradeToday",, "T") ->  | J97: =IFERROR(RTD("cqg.rtd", ,"ContractData",C97, "PerCentNetLastTrade",, "T")/100,"") ->  | K97: =RTD("cqg.rtd", ,"ContractData", C97, "T_CVol",, "T") -> 702 | L97: 97 | M97: =IFERROR(RANK($J97,$J$1:J$101)+COUNTIF($J$1:J97,J97)-1,"") ->  | N97: S.US.VRTX
A98: S.US.WBD | B98: 1 | C98: S.US.WBD | D98: =RTD("cqg.rtd", ,"ContractData",C98, "LongDescription",, "T") -> Warner Bros. Discovery, Inc. Series A | H98: =RTD("cqg.rtd", ,"ContractData",C98, "LastTradeToday",, "T") ->  | I98: =RTD("cqg.rtd", ,"ContractData",C98, "NetLastTradeToday",, "T") ->  | J98: =IFERROR(RTD("cqg.rtd", ,"ContractData",C98, "PerCentNetLastTrade",, "T")/100,"") ->  | K98: =RTD("cqg.rtd", ,"ContractData", C98, "T_CVol",, "T") -> 25130 | L98: 98 | M98: =IFERROR(RANK($J98,$J$1:J$101)+COUNTIF($J$1:J98,J98)-1,"") ->  | N98: S.US.WBD
A99: S.US.WDAY | B99: 1 | C99: S.US.WDAY | D99: =RTD("cqg.rtd", ,"ContractData",C99, "LongDescription",, "T") -> Workday, Inc. | H99: =RTD("cqg.rtd", ,"ContractData",C99, "LastTradeToday",, "T") ->  | I99: =RTD("cqg.rtd", ,"ContractData",C99, "NetLastTradeToday",, "T") ->  | J99: =IFERROR(RTD("cqg.rtd", ,"ContractData",C99, "PerCentNetLastTrade",, "T")/100,"") ->  | K99: =RTD("cqg.rtd", ,"ContractData", C99, "T_CVol",, "T") -> 2530 | L99: 99 | M99: =IFERROR(RANK($J99,$J$1:J$101)+COUNTIF($J$1:J99,J99)-1,"") ->  | N99: S.US.WDAY
A100: S.US.XEL | B100: 1 | C100: S.US.XEL | D100: =RTD("cqg.rtd", ,"ContractData",C100, "LongDescription",, "T") -> Xcel Energy Inc | H100: =RTD("cqg.rtd", ,"ContractData",C100, "LastTradeToday",, "T") ->  | I100: =RTD("cqg.rtd", ,"ContractData",C100, "NetLastTradeToday",, "T") ->  | J100: =IFERROR(RTD("cqg.rtd", ,"ContractData",C100, "PerCentNetLastTrade",, "T")/100,"") ->  | K100: =RTD("cqg.rtd", ,"ContractData", C100, "T_CVol",, "T") -> 185 | L100: 100 | M100: =IFERROR(RANK($J100,$J$1:J$101)+COUNTIF($J$1:J100,J100)-1,"") ->  | N100: S.US.XEL
A101: S.US.ZS | B101: 1 | C101: S.US.ZS | D101: =RTD("cqg.rtd", ,"ContractData",C101, "LongDescription",, "T") -> Zscaler, Inc. | H101: =RTD("cqg.rtd", ,"ContractData",C101, "LastTradeToday",, "T") ->  | I101: =RTD("cqg.rtd", ,"ContractData",C101, "NetLastTradeToday",, "T") ->  | J101: =IFERROR(RTD("cqg.rtd", ,"ContractData",C101, "PerCentNetLastTrade",, "T")/100,"") ->  | K101: =RTD("cqg.rtd", ,"ContractData", C101, "T_CVol",, "T") -> 1016 | L101: 101 | M101: =IFERROR(RANK($J101,$J$1:J$101)+COUNTIF($J$1:J101,J101)-1,"") ->  | N101: S.US.ZS
B103: =SUM(B1:B101)/101 -> 1
